Workbook

Sheet Instructions
B1: INSTRUCTIONS:
B2: 1. Type a company ticker symbol in the cell with a blue background and press the Enter key. | M2: Click here to return to the Analysis page
B3: There is a considerable amount of data to be downloaded to complete the analysis.
B4: All data will be inserted in the appropriate cells--provided you are logged on to the Internet. Be patient. The update may take 15 to 20 seconds. New data will be written over the old data. There is no need to delete existing data. No password is required to use this tool. If you are asked for a password you are attempting to enter data into a cell that cannot be changed. The ticker symbol is the only data entry needed to use the spreadsheet.
I6: If data does not update after entering a ticker symbol and pressing the Enter key, look above the top of the spreadsheet for a "Security Warning", shown here. Click the Options box--a drop down menu will appear. Click the "Enable this content" radio button, then OK. These steps will be required each time the spreadsheet is opened. It is possible to eliminate this step by authorizing all external data to be accessed but is not recommended as it opens your computer to the possibility of receiving destructive data.
B7: If data are incomplete or you receive an error message of any type when using the form, please check my website for an updated spreadsheet. This tool relies on websites that are open and offer free data. They change their site on occasion, causing the automatic download of data feature to stop working. I normally correct the problem within a few days of becoming aware. If you notice strange behavior please email me: bob.at.seattle@gmail.com
B9: HOW TO USE THIS TOOL: The data presented within this tool is comprehensive and can be overwhelming. Therefore, I suggest using only portions of the information until you become more experienced with what the various data show. The most simple approach is to read the "Bullish Results" and "Bearish Results" in those two boxes. That verbiage will steer you to additional comments and numerical analysis at the left of the form--when you want to dive in deeper. To the right of the remarks is a column containing numbers. The numbers refer to line numbers, found on the extreme left which identify data the remarks are referring to. Don't feel it's necessary to analyze all the data in this spreadsheet to aid in making decisions about a company. Use the information that makes sense to you in each learning stage, taking more and more advantage of additional data as your learning experience expands. The final step in using the data presented on this form are the graphs, accessed by clicking the small purple boxes adjacent to selected information. (They are also available as tabs at the bottom of the spreadsheet.) Verbiage explains what to look for on each graph. Notice there are five year data as well as five quarter graphs--providing a display of long and short term information.
B10: The automatic data feature requires being logged on to the Internet when the spreadsheet is opened, and only works with Excel 2000 or newer. If you are using Excel 2007 or newer you must download the file that's to be used with the version of Excel you are using. Note that there are two versions of the spreadsheet on my site.
B12: You can't damage the spreadsheet, so have fun.
B13: (The form is protected and does not allow the user to make changes to formulas, etc.. Therefore, as a user, you cannot make changes that will harm the form, or make it inoperative.)
B14: Note the color legend located on the lower left of the form. Much of the verbiage and many cells will display these colors, depending upon the results of the analysis. This form is somewhat the same as using the SSG. You'll find some items indicating a positive direction, and others not. Use these results as a help in guiding your decision. It does not provide absolute answers. There is no form, or method, that provides "yes" or "no" answers when dealing with the stock market.
B15: SOME SUGGESTIONS IN USING THE TOOL: (It's a little intiminating at first glance.)
B16: I suggest analyzing the data in layers. You might start with observing the Bullish and Bearish remarks. Even a cursory glance tells you a lot. If there are many more Bullish remarks, that's probably good. The opposite is probably bad. Use the "Numerical Result of this Analysis" number only when comparing companies in the same industry. Note: competitors are listed at the bottom of the sheet so a comparison is easily done. Just type in the ticker symbol. Another easy to use factor is determining the Intrinsic Value that Warren Buffett uses--he has no interest unless the discount rate is 25% or more. Click the link, enter the ticker and read the result. The result can be entered on the form if you wish.
B17: Note the yellow "SEE"column of numbers to the right of the Bullish and Bearish remarks. If you'd like to know more about what drives the remark seen, locate the same number in the yellow collumn at the far left. To the left of the Bullish and Bearish boxes are small purple boxes. Click on one and see 5 year and 5 quarter charted data associated with the location of the purple box. Verbiage with each graph explains what to look for. That should be enough to get you started. Investigate and enjoy.
B19: Use the verbiage and the numerical result only as a guide in analyzing the company and as a comparison to companies in the same intistry.
B20: Some Background on this form:
B21: The form was derived after reading what various authors recommended looking at when studying the Annual Report. The authors I used are Peter Lynch, Warren Buffett, Benjamin Graham, and the NAIC Guide. Therefore, the items studied in this form represent the same items recommended by these authors as study tools.
B23: How to get Intrinsic Value: Click on the yellow cell to be taken to the website. Enter the ticker symbol for your company in the symbol box. Click on the "DCF" icon--both are highlited in green on the example >>>>
B24: Scroll down to find the "Fair Value". Enter the value on the Analysis spreadsheet.
B25: This form is offered without warranty. If strange behavior is observed please contact me -- bob.at.seattle@gmail.com
B26: Thanks.
B28: NOTE: This analysis tool is designed for Retail and Manufacturing type industries. If used with other industries the results will be less helpful.
B29: Bob
B31: Click here to return to the Analysis page

Sheet Analysis
B1: ANALYZING THE ANNUAL REPORT | E1: This page shows year over year comparisons--see the graphs for 5 quarter and 5 year comparisons | L1: version 9.51 | N1: =IF(COUNT(rngEarningsStatement)=8," It appears no Refresh is required","Earnings Data are missing--click the ""Refresh Data"" icon") -> It appears no Refresh is required
B2: Type a Ticker Symbol in blue colored cell & press Enter | E2: fb | F2: =Data!C74 -> Facebook, Inc. (FB) | J2: Graphs | X2: =IF(RevenuesThisYear=RevenuesLastYear,"Caution: some data are not being reported correctly","") -> 
C3: The cheaper the paper, the more valuable the information -- Peter Lynch | H3: (Company) | K3: =IF(Data!G15="data missing", "It appears the most recent annual data are missing", "Financial Data from Zacks") -> Financial Data from Zacks | X3: =IF(RevenuesThisYear=RevenuesLastYear,"It appears last year data and this year data are the same","") -> 
C4: =IF(D4="capitalization: SmallCap","(Less than 1 Billion in sales)",IF(D4="capitalization: MidCap","(5 Billion to 10 Billion in sales)",IF(D4="capitalization: largeCap","(Over 10 Billion in sales)"))) -> (Over 10 Billion in sales) | D4: =IF(Data!G40<=1000,"Capitalization: SmallCap",IF(Data!G40>=10000,"Capitalization: LargeCap",IF(Data!G40<500000,"Capitalization: MidCap",""))) -> Capitalization: LargeCap | F4: Fiscal Year End date: | I4: =Data!C17 -> 2020-12-31 | K4: =IF(ISERROR(S75),"",S75) -> 56 | L4: out of | M4: =U75 -> 96 | N4: =IF(T75>693,"CAUTION: DATA ARE MISSING. Close the spreadsheet and open it again.",IF(T75=1,"Caution: One data item is missing",IF(ISERROR(K4),"< #DIV/0 Indicates data are missing","Total Points for this analysis"))) -> Total Points for this analysis
A5: 1 | B5: Accounts Receivable | E5: Change: | F5: =IF(OR(X9<=0,COUNT(X8,X9)<2),0,(X8/X9)-1) -> 0.1909014499 | G5: =IF(F5=0,"No Accounts receivable data are reported for this company",IF(F5>0.001,"Oops - Wrong direction (Increasing)",IF(F12<F5,"Right direction, but Sales is declining faster",IF(F5<0,"OK!, Right direction (Decreasing)","")))) -> Oops - Wrong direction (Increasing) | K5: Bullish Results | V5: SEE | X5: Millions | Y5: of dollars - except today's price
C6: Days waiting for payment this year= | D6: =IF(ISNA(ARThisYear),"N/A",IF(OR(X22<=0,COUNT(X8,X22)<2),NA(),X8/(X22/365))) -> 48.12743558 | E6: =IF(COUNT(F5)<1,"",IF(AND(F12>0,F5>0),"Sales and Accounts Receivable are both increasing - If about equal, that's probably ok",IF(F5>0,"Rising Accts. Rec. means customers aren't paying their bills",""))) -> Sales and Accounts Receivable are both increasing - If about equal, that's probably ok | J6: 1 | K6: =IF(F12>F5,"Sales is increasing faster than Accts Receivable",IF(F$5<0,"Accounts Receivable is decreasing","")) -> Sales is increasing faster than Accts Receivable | P6: =IF(K6="Sales is increasing faster than Accts Receivable",Q6,0) -> 4 | Q6: 4 | R6: =IF(ISNA(D6),"N/A",IF(D6<45,1,IF(D6<60,1,0))) -> 1 | S6: =IF(T6=99,"",IF(R6>0,R6*3,0)) -> 3 | T6: =IF(ISERROR(R6),99,"") ->  | U6: 4 | V6: =IF(OR(K6="Sales is increasing faster than Accts Receivable",K6="Accounts Receivable is decreasing"),"Line 1","") -> Line 1 | Y6: (from Balance Sheet)
C7: Days waiting for payment prior year= | D7: =IF(OR(X23<=0,COUNT(X9,X23)<2),NA(),X9/(X23/365)) -> 49.14027469 | E7: =IF(ISNA(F5),"N/A",IF(AND(F5<0,F9>0),"Accounts Receivable are decreasing but Inventories are increasing - why?",IF(AND(F5>0,F9>0),"Inventories are also increasing - are the increases substantial?",IF(AND(F5<0,F9<0),"Good - Both Accounts Receivable and Inventories are decreasing","If Sales are increasing at a similar rate, good")))) -> If Sales are increasing at a similar rate, good | K7: =IF(ISERROR(F9),"",IF(F12>F9,"Sales are growing faster than Inventories",IF(F$9<0,"Inventories are decreasing",""))) -> Sales are growing faster than Inventories | P7: =IF(K7="Sales are growing faster than Inventories",Q7,0) -> 4 | Q7: 4 | R7: =IF(E6="Sales and Accounts Receivable are both increasing - If about equal, that's probably ok",1,0) -> 1 | S7: 3 | T7: =IF(ISERROR(R7),99,"") ->  | U7: 4 | V7: =IF(OR(K7="Sales are growing faster than inventories",K7="Inventories are decreasing"),"Line 2","") -> Line 2 | X7: =Data!C19 -> 61954 | Y7: Cash & Cash Equivalents
D8: Below 60 is good - below 45 is superb) | J8: 1a | K8: =IF(F$12>0,"Sales are increasing","") -> Sales are increasing | P8: =IF(K8="Sales are increasing",Q8,0) -> 4 | Q8: 4 | R8: =IF(G9="whoa, wrong direction (increasing)",0,IF(G9="yes! - Right direction (Decreasing)",1)) -> FALSE | S8: 0 | T8: =IF(ISERROR(R8),99,"") ->  | U8: 4 | V8: =IF(K8="Sales are increasing","Line 3","") -> Line 3 | X8: =Data!M9 -> 11335 | Y8: Accounts Receivable this year
A9: 2 | B9: Inventories | E9: Change: | F9: =IF(InventoriesThisYear=0,0,IF(OR(X11<=0,COUNT(X10,X11)<2),NA(),(X10/X11)-1)) -> 0 | G9: =IF(F9=0,"No Inventory data are reported for this company",IF(COUNT(F9)<1,"",IF(F9>0.001,"Whoa, wrong direction (Increasing)",IF(F9<0,"YES! - Right direction (Decreasing)","")))) -> No Inventory data are reported for this company | K9: =IF(ISERROR(E15),"",IF(F$12>E$15,"Sales are increasing faster than Cost of Sales","")) -> Sales are increasing faster than Cost of Sales | P9: =IF(K9="Sales are increasing faster than Cost of Sales",Q9,0) -> 4 | Q9: 4 | R9: =IF(E10="CAUTION -- Both Accts. Receivable & Inventories are increasing",0,IF(E10="Both Accts Rec. & Inventories are decreasing, that's positive.",1,0)) -> 0 | S9: 0 | U9: 4 | V9: =IF(K9="Sales are increasing faster than Cost of Sales","Line 4","") -> Line 4 | X9: =Data!L9 -> 9518 | Y9: Accounts Receivable prior year
C10: Inventory Turnover Days this year = | D10: =Data!M27 ->  | E10: =IF(COUNT(F9,F5)<2,"",IF(AND(F9>0,F5>0),"CAUTION -- Both Accts. Receivable & Inventories are increasing",IF(AND(F9<0,F5<0),"Both Accts Rec. & Inventories are decreasing, that's positive.",IF(F9>0,"If Sales are flat or decreasing, Caution","")))) ->  | K10: =IF(ISERROR(F$21),"This company has no long term debt",IF(F$21<0,"Debt is decreasing","")) ->  | P10: =IF(K10="Debt is decreasing",Q10,0) -> 0 | Q10: 4 | R10: =IF(E11="CAUTION -- Both Accts. Receivable & Inventories are increasing",0,IF(E11="Both Accts Rec. & Inventories are decreasing, that's positive.",1,0)) -> 0 | S10: =IF(T10=99,"",IF(R10>0,R10*3,0)) -> 0 | U10: 3 | V10: =IF(K10="Debt is decreasing","Line 6","") ->  | X10: =Data!M11 -> 0 | Y10: Inventories current year
C11: Compare with other companies in the industry | E11: =IF(COUNT(F9)<1,"",IF(F9>0,"If Inventories are rising faster than sales, competition or pricing are likely the problem","")) ->  | J11: 2 | K11: =IF(ISERROR(F$27),"",IF(F$27>5,"Interest Coverage is reasonable","")) -> Interest Coverage is reasonable | P11: =IF(K11="Interest Coverage is reasonable",Q11,0) -> 4 | Q11: 4 | R11: =IF(G12="Way to GO! (Increasing)",1,IF(G12="Oh-Oh - Wrong way",0)) -> 1 | S11: =IF(T11=99,"",IF(R11>0,R11*3,0)) -> 3 | U11: 3 | V11: =IF(K11="Interest Coverage is reasonable","Line 8","") -> Line 8 | X11: =Data!L11 -> 0 | Y11: Inventories prior year
A12: 3 | B12: Sales or Revenues | E12: Change: | F12: =IF(OR(X23<=0,COUNT(X22,X23)<2),NA(),(X22/X23)-1) -> 0.2159639023 | G12: =IF(COUNT(F12)<1,"",IF(F12>0,"Way to GO! (Increasing)","Oh-Oh - Wrong way")) -> Way to GO! (Increasing) | K12: =IF(ISERROR(E30),"",IF(E$30>G$30,"Gross Profit Margin is growing","")) -> Gross Profit Margin is growing | P12: =IF(K12="Gross Profit Margin is growing",Q12,0) -> 4 | Q12: 4 | R12: =IF(E13="Caution - Accts Receivables growing faster than sales",0,IF(E13="OK (Sales growing faster than Accts Receivable)",1,0)) -> 1 | S12: 3 | U12: 3 | V12: =IF(K12="Gross Profit Margin is growing","Line 9","") -> Line 9 | X12: =Data!M13 -> 75670 | Y12: Total Current Assets
C13: Sales to Accts Receivable Ratio. . . . . . . . . . . . . . | E13: =IF(COUNT(F5,F12)<2,"",IF(F5>F12,"Caution - Accts Receivables growing faster than sales","OK (Sales growing faster than Accts Receivable)")) -> OK (Sales growing faster than Accts Receivable) | J13: 2a | K13: =IF(F32<0,"Shares outstanding are decreasing","") -> Shares outstanding are decreasing | P13: =IF(K13="Shares outstanding are decreasing",Q13,0) -> 4 | Q13: 4 | R13: =IF(E14="Caution: Inventories growing faster than sales",0,IF(E14="Sales to Inventories ratio is OK (Sales growing faster than Inventories)",1,0)) -> 1 | S13: 3 | U13: 3 | V13: =IF(K13="Shares outstanding are decreasing","Line 10","") -> Line 10 | X13: =Data!G22 -> 8591 | Y13: This Yr. Total Property Plant & Equip.
C14: Sales to Inventories Ratio. . . . . . . . . . . . . . . . . . . | E14: =IF(F9>F12,"Caution: Inventories growing faster than sales","Sales to Inventories ratio is OK (Sales growing faster than Inventories)") -> Sales to Inventories ratio is OK (Sales growing faster than Inventories) | K14: =IF(F$34>=F$12,"Cash flow is growing faster than Sales","") ->  | P14: =IF(K14="Cash flow is growing faster than Sales",Q14,0) -> 0 | Q14: 4 | R14: =IF(F15="Caution - Why is it increasing?",-1,IF(F15="Cost of Sales is increasing but so is Sales",1,0)) -> 0 | S14: 0 | U14: 4 | V14: =IF(K14="Cash flow is growing faster than Sales","Line 11","") ->  | X14: =Data!L22 -> 35323 | Y14: Prior Yr. Total Property Plant & Equip.
A15: 4 | B15: Cost of Sales | D15: =IF(COUNT(E15)<1,"",IF(E15<0.01,"Down",IF(E15>0.01,"Up","Even"))) -> Down | E15: =IF(COUNT(X24,X25)<2,NA(),(X24/X25)-1) -> -0.3052805281 | F15: =IF(COUNT(E15)<1,"",IF(E15<0.03,"A small change isn't considered too serious",IF(F12>E15,"Cost of Sales is increasing but so is Sales",IF(E15>0.03,"Caution - Why is it increasing?","")))) -> A small change isn't considered too serious | K15: =IF(F$39>0.1,"Free cash flow growth is excellent","") -> Free cash flow growth is excellent | P15: =IF(K15="Free cash flow growth is excellent",Q15,0) -> 4 | Q15: 4 | R15: =IF(F16="CAUTION - Cost of Sales increasing faster than Sales",-1,IF(F16="Good - Sales increasing faster than Cost of Sales",1,0)) -> 1 | S15: 3 | U15: 4 | V15: =IF(K15="Free cash flow growth is excellent","Line13","") -> Line13 | X15: =Data!M25 -> 14981 | Y15: Total Current Liabilities
B16: [Cost of sales this year/Cost of sales prior year as a % change] | F16: =IF(ISERROR(E15),"Data is missing or not available",IF((X24/X25)>(X22/X23),"CAUTION - Cost of Sales increasing faster than Sales","Good - Sales increasing faster than Cost of Sales")) -> Good - Sales increasing faster than Cost of Sales | K16: =IF(F$41*100>X$35,"Return on Free Cash flow is good","") -> Return on Free Cash flow is good | P16: =IF(K16="Return on Free Cash flow is good",Q16,0) -> 4 | Q16: 4 | R16: =IF(F17="CAUTION - Cost of Sales increasing faster than Sales",-1,IF(F17="Good - Sales increasing faster than Cost of Sales",1,0)) -> -1 | S16: 0 | T16: =IF(ISERROR(R16),99,"") ->  | U16: 4 | V16: =IF(K16="Return on Free Cash flow is good","Line 14","") -> Line 14 | X16: =IF(ISERROR(Data!G30),0,Data!G30) -> 0 | Y16: Long-term Debt this year
K17: =IF(F$48>0.1,"Return on Assets is adequate","") -> Return on Assets is adequate | P17: =IF(K17="Return on Assets is adequate",Q17,0) -> 4 | Q17: 4 | R17: =IF(G18="Caution - The investment in PP&E is flat or decreasing",-1,IF(G18="OK - (Sales should grow as fast)",1,0)) -> -1 | S17: 0 | U17: 3 | V17: =IF(K17="Return on Assets is adequate","Line 17","") -> Line 17 | X17: =IF(ISERROR(Data!F30),0,Data!F30) -> 0 | Y17: Long-term Debt prior year
A18: 5 | B18: Plant & Equipment | E18: Change: | F18: =IF(COUNT(X13,X14)<2,NA(),X13/X14-1) -> -0.7567873623 | G18: =IF(COUNT(F18)<1,"",IF(F18>0,"OK - (Sales should grow as fast)","Caution - The investment in PP&E is flat or decreasing")) -> Caution - The investment in PP&E is flat or decreasing | K18: =IF(F$50>0.15,"Return on Equity is adequate","") -> Return on Equity is adequate | P18: =IF(K18="Return on Equity is adequate",Q18,0) -> 4 | Q18: 4 | R18: =IF(F19="Oops - Sales aren't growing as fast",-1,IF(F19="Way to GO! Sales are growing faster",1,0)) -> 1 | S18: 3 | U18: 3 | V18: =IF(K18="Return on Equity is adequate","Line 18","") -> Line 18 | X18: =Data!G32 -> 2886 | Y18: Common Shares Outstanding this Yr.
C19: (Sales should be increasing as fast or faster). | F19: =IF(COUNT(F12,F18)<2,"",IF(F12>F18,"Way to GO! Sales are growing faster","Oops - Sales aren't growing as fast")) -> Way to GO! Sales are growing faster | J19: 3 | K19: =IF(ISERROR(Net_Income),"",IF(E$55<F$55,"Net Cash is growing faster than Net Income","")) ->  | P19: =IF(K19="Net Cash is growing faster than Net Income",Q19,0) -> 0 | Q19: 4 | V19: =IF(K19="Net Cash is growing faster than Net Income","Line 20","") ->  | X19: =Data!F32 -> 2906 | Y19: Common Shares Outstanding prior Yr.
K20: =IF(E$57>(CurrentPrice*0.1),"Cash Position per Share is worth noting","") ->  | P20: =IF(K20="Cash Position per Share is worth noting",Q20,0) -> 0 | Q20: 4 | R20: =IF(ISERROR(F21),"",IF(LTDebtThisYEar=0,1,IF(G21="Wrong direction (Increasing)",-1,IF(G21="Right direction (Decreasing)",1,0)))) -> 1 | S20: =IF(T20=99,"",IF(R20>0,R20*3,0)) -> 3 | U20: 2 | V20: =IF(K20="Cash Position per Share is worth noting","Line 21","") ->  | X20: =Data!G28 -> 42735 | Y20: Total Stockholders Equity
A21: 6 | B21: Long-term Debt | E21: Change: | F21: =IF(AND(LTDebtThisYEar>0,LTDebtLastYear=0),1,IF(LTDebtThisYEar+LTDebtLastYear>0,X16/X17-1,0)) -> 0 | G21: =IF(ISERROR(LTDebtThisYEar),"Company has no debt or it has not been reported",IF(AND(F21>"0",LTDebtLastYear="0"),"Company has taken on new debt this year",IF(LTDebtThisYEar=0,"No long term debt can be very positive",IF(F21>0.02,"Wrong direction (Increasing)",IF(F21<0,"Right direction (Decreasing)","No substantial change"))))) -> No long term debt can be very positive | K21: =IF(CurrentPrice*0.1*2<D$57,"Cash Position per Share is greater than 20% of the current price","") ->  | P21: =IF(K21="Cash Position per Share is greater than 20% of the current price",Q21,0) -> 0 | Q21: 4 | R21: =IF(ISERROR(F22),"",IF(LTDebtThisYEar=0,1,IF(G22="Wrong direction (Increasing)",-1,IF(G22="Right direction (Decreasing)",1,0)))) -> 1 | S21: =IF(T21=99,"",IF(R21>0,R21*3,0)) -> 3 | T21: =IF(ISERROR(R21),99,"") ->  | U21: 2 | V21: =IF(K21="Cash Position per Share is greater than 20% of the current price","Line 21","") ->  | Y21: (from Statement of Earnings)
G22: =IF(ISERROR(LTDebtThisYEar),"",IF(F21="up","",IF(LTDebtThisYEar<0.001,"",IF(F24>0.25,"Debt to Equity Ratio is High","Debt to Equity Ratio is OK")))) ->  | J22: 3a | K22: =IF(ISERROR(LTDebtThisYEar),"",IF(F$24=0,"No debt can be very positive--particularly in a down economy",IF(F$24<0.26,"Debt to Equity ratio is reasonable",""))) -> No debt can be very positive--particularly in a down economy | P22: =IF(OR(K22)="Debt to Equity ratio is reasonable",K22="No debt can be very positive--particularly in a down economy",Q22) -> TRUE | Q22: 4 | R22: =IF(G22="Debt to Equity Ratio is High",-1,IF(G22="Debt to Equity Ratio is OK",1,1)) -> 1 | S22: =IF(T22=99,"",IF(R22>0,R22*3,0)) -> 3 | U22: 3 | V22: =IF(OR(K22="No debt can be very positive--particularly in a down economy",K22="Debt to Equity ratio is reasonable"),"Line 7","") -> Line 7 | X22: =Data!M39 -> 85965 | Y22: Total Sales or Revenues this Year
G23: =IF(COUNT(F21)<1,"",IF(F21=0,"",IF(F21>0.02,"Why are they taking on more debt? What is the debt to equity ratio?","A small change isn't considered a serious negative."))) ->  | K23: =IF(F37>2,"The dividend payout ratio appears to be sustainable","") -> The dividend payout ratio appears to be sustainable | P23: =IF(K23="The dividend payout ratio appears to be sustainable",Q23,0) -> 4 | Q23: 4 | R23: =IF(ISERROR(F27),1,IF(G22="Debt to Equity Ratio is OK",1,IF(G27="Caution, company may be weak financially.",0))) -> FALSE | S23: =IF(T23=99,"",IF(R23>0,R23*3,0)) -> 0 | U23: 3 | V23: =IF(K23="The dividend payout ratio appears to be sustainable","Line 12","") -> Line 12 | X23: =Data!L39 -> 70697 | Y23: Total Sales or Revenues prior Year
A24: 7 | B24: LT Debt to Equity Ratio: | E24: debt to equity. | F24: =IF(LTDebtThisYEar="--",0,X16/X20) -> 0 | G24: =IF(ISERROR(LTDebtThisYEar),"Company has no debt or it has not been reported",IF(COUNT(F24)<1,"",IF(F24>0.26,"Long-term debt may be excessive",IF(F24=0,"The company has no Long-term Debt","Long-term Debt is in normal range")))) -> The company has no Long-term Debt | K24: =IF(ISERROR(#REF!),"",IF(#REF!>#REF!,"Gross Profit Margin is greater than the industry average","")) ->  | P24: =IF(K24="Gross Profit Margin is greater than the industry average",Q24,0) -> 0 | Q24: 4 | R24: =IF(G24="Long-term Debt is in normal range",1,0) -> 0 | S24: =IF(T24=99,"",IF(R24>0,R24*3,0)) -> 0 | T24: =IF(ISERROR(R24),99,"") ->  | U24: 3 | V24: =IF(K24="Gross Profit Margin is greater than the industry average","Line 30","") ->  | X24: =Data!G60 -> 3789 | Y24: Cost of Sales this Year
C25: [Long-term Debt / Total Equity] | D25: Normal Long-term Debt -- Less than 25%. | G25: =IF(COUNT(F24)<1,"",IF(F24>0.26,"Is the ROE greater than interest rates? Also see Free Cash Flow Ratio","")) ->  | K25: =IF(F$46>E$46,"The growth in Sales is greater than the growth in Assets","") ->  | P25: =IF(K25="The growth in Sales is greater than the growth in Assets",Q25,0) -> 0 | Q25: 4 | V25: =IF(K25="The growth in Sales is greater than the growth in Assets","Line 16","") ->  | X25: =Data!F60 -> 5454 | Y25: Cost of Sales prior Year
Q26: 4 | X26: =Data!G48 -> 12518 | Y26: Income before Taxes
A27: 8 | B27: Total Interest Coverage | D27: Pretax exceeds interest X times | F27: =IF(OR(X29<=0,COUNT(X26,X29)<2),"N/A",(X26+X29)/X29) -> 14.13536201 | G27: =IF(ISERROR(LTDebtThisYEar),"Company has no debt or it has not been reported",IF(F27="n/a","The data source reports no interest was paid on debt this year",IF(TotalInterestPaidonDebt=0,"With no LT debt, this item is Not Applicable",IF(F27>4.99,"Large numbers aren't as useful as small.","")))) -> Large numbers aren't as useful as small. | K27: Total Bulish factors: | V27: =COUNTIF(V6:V24,"*L*") -> 13 | X27: =Data!G49 -> 10217 | Y27: This Yr. Net Income
C28: [Pretax Profit + Total Interest Paid / Total Interest Paid] | F28: =IF(COUNT(F27)<1,"",IF(F27>4.99,"This company appears to be in good shape financially.",IF(F27>2.9999,"Caution, Interest Coverage is worrysome","CAUTION, Interest Coverage is VERY worrysome"))) -> This company appears to be in good shape financially. | P28: =COUNT(P6:P27) -> 19 | Q28: =SUM(Q6:Q27) -> 84 | X28: =Data!F49 -> 15934 | Y28: Prior Yr. Net Income
G29: Any number below 5 is worrisome. A number below 3 is very worrisome | K29: Bearish Results | R29: =IF(H30="Caution the Gross Margin is decreasing",0,IF(H30="Good, Gross Profit is increasing",1,0)) -> 1 | S29: =IF(T29=99,"",IF(R29>0,R29*2,0)) -> 2 | U29: 2 | V29: SEE | X29: =IF(ISERROR(Data!G56),0,Data!G56) -> 953 | Y29: Total Interest Paid on Debt
A30: 9 | B30: Gross Profit Margin | D30: This year= | E30: =ROUND((RevenuesThisYear-CostsThisYear)/RevenuesThisYear,3) -> 0.956 | F30: Prior Year= | G30: =ROUND((RevenuesLastYear-CostsLastYear)/RevenuesLastYear,3) -> 0.923 | H30: =IF(G30>E30,"Caution the Gross Margin is decreasing",IF(G30<E30,"Good, Gross Profit is increasing","")) -> Good, Gross Profit is increasing | J30: 4 | K30: =IF(F$5>0,"Accounts Receivable is increasing","") -> Accounts Receivable is increasing | P30: =IF(K30="Accounts Receivable is increasing",Q30,0) -> -4 | Q30: -4 | V30: =IF(K30="Accounts Receivable is increasing","Line 1","") -> Line 1 | Y30: (from Statement of Cash Flows)
C31: [Sales - Cost of Sales / Sales] | K31: =IF(ISERROR(F9),"",IF(F$9>0,"Inventories are increasing","")) ->  | P31: =IF(K31="Inventories are increasing",Q31,0) -> 0 | Q31: -4 | R31: =IF(G32="Wrong direction (Increasing)--Dilution is occuring",-1,IF(G32="Right Direction (Decreasing)",1,0)) -> 1 | S31: =IF(T31=99,"",IF(R31>0,R31*3,0)) -> 3 | U31: 3 | V31: =IF(K31="Inventories are increasing","Line 2","") ->  | X31: =Data!M64 -> 38747 | Y31: This Yr.-Net Cash provided by Operations
A32: 10 | B32: Number of shares outstanding trend: | E32: =IF(F32<1.02,"Down",IF(F32>1.02,"Up","Even")) -> Down | F32: =IF(OR(X19<=0,COUNT(X18,X19)<2),"UP",(X18/X19)-1) -> -0.006882312457 | G32: =IF(F32="UP","Company has not reported common shares last year",IF(F32>0.02,"Wrong direction (Increasing)--Dilution is occuring",IF(F32=0,"No significant change",IF(F32<0,"Right Direction (Decreasing)",IF(F32<=0.02,"A small change is not important"))))) -> Right Direction (Decreasing) | K32: =IF(F$12<0,"Sales are decreasing","") ->  | P32: =IF(K32="Sales are decreasing",Q32,0) -> 0 | Q32: -4 | V32: =IF(K32="Sales are decreasing","Line 3","") ->  | X32: =Data!L64 -> 36314 | Y32: Prior Yr. -Net Cash provided by Operations
C33: [Curr. Yr. Shares/Prior Yr. Shares] | F33: =IF(COUNT(F32)<1,"",IF(F32<0.02,"A small change of up to about 2% isn't considered too consequencial","")) -> A small change of up to about 2% isn't considered too consequencial | K33: =IF(F9>F12,"Inventories are growing faster than sales","") ->  | P33: =IF(K33="Inventories are growing faster than sales",Q33,0) -> 0 | Q33: -4 | V33: =IF(K33="Inventories are growing faster than sales","Line 3","") ->  | X33: =Data!M54 -> 1 | Y33: Dividends
A34: 11 | B34: Operating Cash flow Change | F34: =Data!M52 -> -0.3931539305 | G34: Cash flow should increase at the same rate as Sales - or greater | K34: =IF(ISERROR(E15),"",IF(F$12<E$15,"Cost of Sales is growing faster than Sales","")) ->  | P34: =IF(K34="Cost of Sales is growing faster than Sales",Q34,0) -> 0 | Q34: -4 | R34: =IF(F35="Caution - Cashflow is not increasing at or better than the Sales rate",0,IF(G35="Cashflow is growing faster than Sales",1,0)) -> 0 | S34: =IF(T34=99,"",IF(R34>0,R34*3,0)) -> 0 | U34: 3 | V34: =IF(K34="Cost of Sales is growing faster than Sales","Line 4","") ->  | X34: =Data!B81 -> 373.06 | Y34: Price
B35: (Curr. Yr. PreTax + Depreciation - Taxes / Prior Yr. PreTax + Depreciation - Taxes] | F35: =IF(COUNT(NetCashOperationsThisYear,NetCashOperationsLastYear,RevenuesThisYear,RevenuesLastYear)<4,"",IF(F34>F12,"Cashflow is growing faster than Sales",IF(F34="NMF","This ratio is not meaningful -- Caution is advised","Caution - Cashflow is not increasing at or better than the Sales rate"))) -> Caution - Cashflow is not increasing at or better than the Sales rate | K35: =IF(ISERROR(F$21),"",IF(F$21>0.25,"Long Term Debt is increasing","")) ->  | P35: =IF(K35="Long Term Debt is increasing",Q35,0) -> 0 | Q35: -4 | V35: =IF(K35="Long Term Debt is increasing","Line 6","") ->  | X35: =Data!C123/100 -> 0.0146 | Y35: 10 Year Note rate
K36: =IF(ISERROR(F$27),"",IF(F$27<5,"Caution--Interest Coverage is low or data are missing","")) ->  | P36: =IF(K36="Caution--Interest Coverage is low or data are missing",Q36,0) -> 0 | Q36: -4 | R36: =IF(G37="",0,IF(G37="ratio is probably sufficient--the dividend is not likely to be cut",1,0)) -> 1 | S36: =IF(T36=99,"",IF(R36>0,R36*3,0)) -> 3 | U36: 3 | V36: =IF(K36="Caution--Interest Coverage is low or data are missing","Line 8","") ->  | X36: =IF(ISERROR(CurrentPrice),"PRICE IS MISSING.CLICK LINK BELOW TO GET PRICE ","") -> 
A37: 12 | B37: Dividend to Cash from Operations ratio | F37: =Data!N57 -> 38747 | G37: =IF(AND(Data!M54=0,SUM(Data!I54:M54)>0),"Company paid a dividend in the past but data for most recent quarter is missing--why?",IF(Data!M54=0,"The company pays no dividend",IF(F37>=2,"Ratio is probably sufficient--the dividend is not likely to be cut",IF(AND(F37>=1,F37<2),"The ratio is low--can the current dividend be continued?",IF(F37<1,"The dividend is in danger of being cut or eliminated",""))))) -> Ratio is probably sufficient--the dividend is not likely to be cut | K37: =IF(ISERROR(E30),"",IF(E$30<G$30,"Gross Profit Margin is not growing","")) ->  | P37: =IF(K37="Gross Profit Margin is not growing",Q37,0) -> 0 | Q37: -4 | V37: =IF(K37="Gross Profit Margin is not growing","Line 9","") ->  | X37: =IF(ISERROR(CurrentPrice),"TYPE PRICE INTO 'THE Price' CELL ABOVE","") -> 
C38: Indicates if there is enough cash flow to cover the dividend | K38: =IF(F39<0.1,"Free cash flow margin should be higher","") ->  | P38: =IF(K38="Free cash flow margin should be higher",Q38,0) -> 0 | Q38: -4 | R38: =IF(G39="OOPS, anything less than 10 is bad news",0,IF(G39="Anything over 10 is Great - Substantially over 10 is EXCELLENT",1,0)) -> 1 | S38: =IF(T38=99,"",IF(R38>0,R38*3,0)) -> 3 | U38: 3 | V38: =IF(K38="Free cash flow margin should be higher","Line 13","") -> 
A39: 13 | B39: Free Cash Flow Margin | F39: =Data!N60 -> 0.4507299482 | G39: =IF(COUNT(F39)<1,"",IF(F39<0.098,"OOPS, anything less than 10 is bad news","Anything over 10 is Great - Substantially over 10 is EXCELLENT")) -> Anything over 10 is Great - Substantially over 10 is EXCELLENT | K39: =IF(F32>=0.02,"Shares outstanding are increasing","") ->  | P39: =IF(K39="Shares outstanding are increasing",Q39,0) -> 0 | Q39: -4 | V39: =IF(K39="Shares outstanding are increasing","Line 10","") -> 
C40: [Free Cash Flow / Sales] | K40: =IF(F$34<F$12,"Sales is growing slower than Cash flow","") -> Sales is growing slower than Cash flow | P40: =IF(K40="Sales is growing slower than Cash flow",Q40,0) -> -4 | Q40: -4 | T40: =IF(ISERROR(R40),99,"") ->  | V40: =IF(K40="Sales is growing slower than Cash flow","Line 11","") -> Line 11
A41: 14 | B41: Return on free cash flow - compare to yield on 10 year Note | F41: =IF(Dividends=0,"Caution",(NetCashOperationsThisYear-PPEThisYear-Dividends)/CommonSharesThisYear)/CurrentPrice -> 0.02800814332 | G41: =IF(F41<X35/100,"The return is less than the 10 year note. Is company spending cash wisely?",IF(F41>X35/100,"Good - Free Cashflow return is greater than the 10 year note rate","")) -> Good - Free Cashflow return is greater than the 10 year note rate | K41: =IF(ISERROR(LTDebtThisYEar),"",IF(F$24=0,"",IF(F$24>0.26,"Debt to Equity is high",""))) ->  | P41: =IF(K41="Debt to Equity is high",Q41,0) -> 0 | Q41: -4 | T41: =IF(ISERROR(R41),99,"") ->  | V41: =IF(K41="Debt to Equity is high","Line 7","") ->  | X41: See www.Investopedia.com for item definitions
K42: =IF(F$46<E$46,"The growth in Sales is less than the growth in Assets","") ->  | P42: =IF(K42="The growth in Sales is less than the growth in Assets",Q42,0) -> 0 | Q42: -4 | V42: =IF(K42="The growth in Sales is less than the growth in Assets","Line 16","") ->  | X42: =IF(COUNT(rngBalanceSheet)=14,"...",333) -> ...
A43: 15 | B43: Earnings Yield - compare to yield on 10 year Note | F43: =CurrentPrice/Data!G58/100 -> 1.068939828 | G43: =IF(F43-0.02>X35,"Earnings Yield is significantly greater than the 10 year note rate","Earnings Yield is not significantly higher than the 10 year note rate.") -> Earnings Yield is significantly greater than the 10 year note rate | K43: =IF(F$41*100<X$35,"Return on Free Cash flow is less than the 10 year bond rate","") ->  | P43: =IF(K43="Return on Free Cash flow is less than the 10 year bond rate",Q43,0) -> 0 | Q43: -4 | R43: =IF(F43-(F44+2)<1,1) -> 1 | S43: =IF(T43=99,"",IF(R43>0,R43*1,0)) -> 1 | U43: 1 | V43: =IF(K43="Return on Free Cash flow is less than the 10 year bond rate","Line 14","") -> 
C44: [Inverse of the P/E --- Price / Earnings] | E44: 10 Year Note Yield = | F44: =X35 -> 0.0146 | G44: Earnings Yield should exceed 10 year Note yield by at least 2% | K44: =IF(F$48<0.1,"Return on Assets should be higher","") ->  | P44: =IF(K44="Return on Assets should be higher",Q44,0) -> 0 | Q44: -4 | V44: =IF(K44="Return on Assets should be higher","Line 17","") -> 
E45: Asset growth | F45: Sales growth | K45: =IF(F$50<0.15,"Return on Equity is inadequate","") ->  | P45: =IF(K45="Return on Equity is inadequate",Q45,0) -> 0 | Q45: -4 | V45: =IF(K45="Return on Equity is inadequate","Line 18","") -> 
A46: 16 | B46: Asset Utilization | E46: =ROUND(Data!M41,3) -> 0.216 | F46: =ROUND(F12,3) -> 0.216 | G46: =IF(E46>F46,"Good, Sales is growing faster than Assets",IF(F46>E46,"Caution-Assets are growing faster than Sales","")) ->  | J46: 5a | K46: =IF(E$55>F$55,"Net Cash is not growing as fast or faster than Net Income","") -> Net Cash is not growing as fast or faster than Net Income | P46: =IF(K46="Net Cash is not growing as fast or faster than Net Income",Q46,0) -> -4 | Q46: -4 | R46: =IF(F46>E46,1,0) -> 0 | S46: =IF(T46=99,"",IF(R46>0,R46*3,0)) -> 0 | U46: 1 | V46: =IF(K46="Net Cash is not growing as fast or faster than Net Income","Line 20","") -> Line 20
C47: How well is management utilizing the assets of the company--turning them into Revenues/Sales? | K47: =IF(CurrentPrice*0.1*2>D$57,"Cash Position per Share is less than 20% of the current price","") -> Cash Position per Share is less than 20% of the current price | P47: =IF(K47="Cash Position per Share is less than 20% of the current price",Q47,0) -> -4 | Q47: -4 | R47: =IF(F43>0.05,1,0) -> 1 | S47: =IF(T47=99,"",IF(R47>0,R47*3,0)) -> 3 | U47: 3 | V47: =IF(K47="Cash Position per Share is less than 20% of the current price","Line 21","") -> Line 21
A48: 17 | B48: Return on Assets (ROA) | F48: =NetProfitThisYear/Data!G14 -> 0.1572789828 | G48: This measurement of profitability includes debt--an important factor | K48: =IF(F37="none","",IF(F37<=2,"The dividend may be in danger of being cut","")) ->  | P48: =IF(K48="The dividend may be in danger of being cut",Q48,0) -> 0 | Q48: -4 | V48: =IF(K48="The dividend may be in danger of being cut","Line 12","") -> 
C49: [Net Income / Total Assets] | G49: See Graph 6 for the reasons why | J49: 6
A50: 18 | B50: Return on Equity (ROE) | F50: =NetProfitThisYear/TotalStockholdersEquity -> 0.2390780391 | G50: This measurement of profitability does not include debt--an important factor
C51: [Net Income / Total Equity] | G51: See graph 6 for the reasons why
A52: 19 | B52: Earnings Confidence Rating -- Measures quality of Earnings | F52: =IF(OR(X31<=0,COUNT(X27,X31)<2),NA(),X31/X27) -> 3.792404816 | G52: The higher the number the higher the quality of Earnings. | J52: 7a | P52: =IF(K52="Short Interest is becoming a concern--Is it also increasing?",Q52,0) -> -4 | Q52: -4
C53: [Net Cash from Operations / Net Income] | G53: One or less than one is very serious. Earnings quality is very low. | K53: Total Bearish factors: | V53: =COUNTIF(V30:V50,"*L*") -> 4
E54: Net Income | F54: Net Cash | J54: 8 | P54: =COUNT(P30:P53) -> 20 | Q54: =SUM(Q30:Q52) -> -80
A55: 20 | B55: Compare - Net Income with Net Cash | E55: =X28/X27-1 -> 0.5595576001 | F55: =IF(OR(X32<=0,COUNT(X31,X32)<2),"NA",ROUND((X31/X32-1),2)) -> 0.07 | G55: =IF(NetCashOperationsThisYear="--","Data not reported",IF(E55>F55,"Oops - Net Cash is growing at a slower rate than Net Income",IF(F55>E55,"Net Cash is growing faster than Net Income. That normally is positive",""))) -> Oops - Net Cash is growing at a slower rate than Net Income | K55: =Data!I76 -> 
C56: =IF(COUNT(E55)<1,"",IF(E55<0.01,"Caution - Net Income is declining","Net Income is growing")) -> Net Income is growing | G56: =IF(COUNT(F55)<1,"",IF(F55<0.01," Caution - Net Cash is declining"," Net Cash is growing")) -> Net Cash is growing | P56: =IF(G55="Oops - Net Cash is growing at a slower rate than Net Income",-1,IF(G55="Net Cash is growing faster than Net Income. That normally is positive",1,0)) -> -1 | Q56: =IF(R56=99,"",IF(P56>0,P56*3,0)) -> 0 | R56: =IF(G55="Oops - Net Cash is growing at a slower rate than Net Income",-1,IF(G55="Net Cash is growing faster than Net Income. That normally is positive",1,0)) -> -1 | S56: =IF(T56=99,"",IF(R56>0,R56*3,0)) -> 0 | U56: 3
A57: 21 | B57: Cash Position per Share: | D57: =IF(COUNT(X18)<1,NA(),(X7)/X18) -> 21.46708247 | E57: per share in cash beyond debt. | H57: =IF(COUNT(D57)<1,"",IF(D57>0.00001,"This represents actual cash included in the","A small or negative amount isn't considered too ")) -> This represents actual cash included in the | P57: =IF(G56=" Caution - Net Cash is declining",0,IF(G56=" Net Cash is growing",1,0)) -> 1 | Q57: =IF(R57=99,"",IF(P57>0,P57*3,0)) -> 3 | R57: =IF(G56=" Caution - Net Cash is declining",0,IF(G56=" Net Cash is growing",1,0)) -> 1 | S57: =IF(T57=99,"",IF(R57>0,R57*3,0)) -> 3 | U57: 3
C58: [Net Cash / Shrs outstanding] | D58: Offers price support in falling market if positive. | H58: =IF(COUNT(D57)<1,"",IF(D57>0.00001,"price of each share of stock. If significant, (perhaps","serious. But if cash is shrinking and debt is growing,")) -> price of each share of stock. If significant, (perhaps | K58: Danger | P58: =IF(C56="Caution - Net Income is declining",0,IF(C56="Net Income is growing",1,0)) -> 1 | Q58: =IF(R58=99,"",IF(P58>0,P58*3,0)) -> 3 | R58: =IF(C56="Caution - Net Income is declining",0,IF(C56="Net Income is growing",1,0)) -> 1 | S58: =IF(T58=99,"",IF(R58>0,R58*3,0)) -> 3 | U58: 3
C59: =IF(D57/CurrentPrice>0.2,"Good, Cash Position is meaningful - greater than 20% of current price","Oops, Cash Position is not meaningful - less than 20% of current price") -> Oops, Cash Position is not meaningful - less than 20% of current price | H59: =IF(COUNT(D57)<1,"",IF(D57>0.00001,"20% of the share price) it's very positive.","the company may be in weak financial shape.")) -> 20% of the share price) it's very positive. | K59: Caution
B60: =IF(F60>0.15,"At greater than 15%, cash per share may become a factor at",IF(D57>0.2,"Cash position per share is:")) -> Cash position per share is: | F60: =D57/X34 -> 0.05754324363 | K60: Good | P60: =IF(C59="Oops, Cash Position is not meaningful - less than 20% of current price",-1,IF(C59="Good, Cash Position is meaningful - greater than 20% of current price",1,0)) -> -1 | Q60: =IF(P60>0,P60*3,0) -> 0 | R60: =IF(C59="Oops, Cash Position is not meaningful - less than 20% of current price",-1,IF(C59="Good, Cash Position is meaningful - greater than 20% of current price",1,0)) -> -1 | S60: =IF(R60>0,R60*3,0) -> 0 | U60: 3
K61: Very Good | P61: =IF(G24="Caution, Long-term debt may be excessive -- Check Section 2B of the SSG -- ROE",-1,IF(G24="Long-term Debt is in normal range",1,IF(E24="No long-term debt",1,0))) -> 0 | Q61: =IF(R61=99,"",IF(P61>0,P61*3,0)) -> 0 | R61: =IF(G24="Caution, Long-term debt may be excessive -- Check Section 2B of the SSG -- ROE",-1,IF(G24="Long-term Debt is in normal range",1,IF(G24="No long-term debt",1,0))) -> 0 | S61: =IF(T61=99,"",IF(R61>0,R61*3,0)) -> 0 | U61: 2
C62: NOTE: Ratios are more meaningful if compared to other companies in the same industry. See below for competitors.
C63: Quick Ratio: | D63: =(TotalCurrentAssets-InventoriesThisYear)/X15 -> 5.051064682 | E63: to 1 | F63: About 1:1 is normal. The higher the better. | P63: =IF(D63>0.9999,1) -> 1 | Q63: =P63*1 -> 1 | R63: =IF(D63>0.9999,1) -> 1 | S63: =R63*1 -> 1 | U63: 1
C64: [Total Assets - Inventories / Total Liabilities]
J65: 9
C66: Current Ratio | D66: =IF(OR(X15<=0,COUNT(X12,X15)<2),NA(),X12/X15) -> 5.051064682 | E66: to 1 | F66: About 2:1 is normal for manufacturer. 1:1 normal for Utilities. | P66: =IF(D66>1.999,1) -> 1 | Q66: =P66*1 -> 1 | R66: =IF(D66>1.999,1) -> 1 | S66: =R66*1 -> 1 | U66: 1
C67: (also called Working Capital Ratio)
C68: [Total Current Assets / Total Current Liabilities]
C69: Inventory Turnover Ratio: | D69: =IF(X10=0,"No",X24/X10) -> No | E69: =IF(D69="no","inventory","to 1") -> inventory | F69: The higher the ratio the better. Indicates quality merchandise & proper pricing.
C70: [Cost of Sales / Inventory] | F70: Also note the number of days Inventories are held before they become a product and sold (See "Inventories" above).
F71: =IF(D69>25,"Why is this ratio so high? Check it out. Has Cost of Sales or Inventories changed greatly?","Inventory Ratio appears to be in a normal range") -> Inventory Ratio appears to be in a normal range
C72: Plant Turnover Ratio: | D72: =IF(COUNT(X22,X13)<2,NA(),X22/X13) -> 10.00640205 | E72: to 1 | F72: The higher the ratio the better. If plant or equipment are added, sales should increase. | P72: =IF(F71="Why is this ratio so high? Check it out. Has Cost of Sales or Inventories changed greatly?",0,IF(F71="Inventory Ratio appears to be in a normal range",1)) -> 1 | Q72: =IF(R72=99,"",IF(P72>0,P72*3,0)) -> 3 | R72: =IF(F71="Why is this ratio so high? Check it out. Has Cost of Sales or Inventories changed greatly?",0,IF(F71="Inventory Ratio appears to be in a normal range",1)) -> 1 | S72: =IF(T72=99,"",IF(R72>0,R72*3,0)) -> 3 | U72: 2
C73: (Sales / Prop. Plant & Equip.) | E73: Be aware it takes time for a new plant to come on line and benefit sales. Check to see what the funds for PP&E were spent for.
C75: Price to Sales Ratio: | D75: =IF(OR(X22<=0,COUNT(X34,X22,X18)<3),NA(),X34/(X22/X18)) -> 12.52429663 | F75: The lower the amount the better. This is the amount invested for each dollar of sales. This ratio is Industry sensitive. | P75: =SUM(P3:P72) -> 71 | Q75: =SUM(Q6:Q72) -> 19 | R75: =SUM(R6:R72) -> 17 | S75: 56 | T75: 0 | U75: 96
C76: [Today's Price / Revenues per Share] | F76: This ratio will be higher for companies with high profit margins and growth. Compare to same industry companies. | T76: =IF(ISERROR(R76),99,"") -> 
C77: NOTE: If there are large changes in year to year results, check to see if acquisitions have skewed the results of the analysis
C78: =IF(H$91-F$91<10,"","Fair Value may be out of date. Please update the value.") ->  | L78: Copyright Bob Adams 2021 All Rights Reserved
C79: Closing Price | D79: =CurrentPrice -> 373.06 | E79: CLICK HERE FOR INTRINSIC VALUE
C80: Enter Discounted CF here >>> | D80: 590 | E80: =IF(H80>0,"Company is selling at a discount of:","Company is over valued") -> Company is selling at a discount of: | H80: =((D79/D80)-1)/-1 -> 0.3676949153
C81: Discounted Cash Flow is not an automatic feature. Click the link above. When on the site type in the ticker symbol.
C82: =IF(H82-F82>20,"Enter the date IV the was updated (Todays date) >>","Intrinsic Value is up to date") -> Intrinsic Value is up to date | F82: 2021-11-13 | H82: =TODAY() -> 2021-11-13
C85: An attempt to provide accurate information on this spreadsheet has been made but is not guaranteed. It uses data available from free data sites which change their formatting at times, which causes the tool to fail. If a problem is noticed please email me. bobatseattle@gmail.com
T90: =IF(ISERROR(S90),99,"") -> 

Sheet Data (hidden)
B1: =Analysis!E2 -> fb
B3: Annual Balance Sheet Data
A4: =MATCH(B4,AnnBS!A$200:A$405,0) -> 72 | B4: All items in Millions except Per Share data. | C4: =OFFSET(INDEX(AnnBS!$A$200:$O$500,$A4,COLUMN()-COLUMN($A4)),1,0) -> 2020-12-31 | D4: =OFFSET(INDEX(AnnBS!$A$200:$O$500,$A4,COLUMN()-COLUMN($A4)),1,0) -> 2019-12-31 | E4: =OFFSET(INDEX(AnnBS!$A$200:$O$500,$A4,COLUMN()-COLUMN($A4)),1,0) -> 2018-12-31 | F4: =OFFSET(INDEX(AnnBS!$A$200:$O$500,$A4,COLUMN()-COLUMN($A4)),1,0) -> 2017-12-31 | G4: =OFFSET(INDEX(AnnBS!$A$200:$O$500,$A4,COLUMN()-COLUMN($A4)),1,0) -> 2016-12-31 | I4: =G4 -> 2016-12-31 | J4: =F4 -> 2017-12-31 | K4: =E4 -> 2018-12-31 | L4: =D4 -> 2019-12-31 | M4: =C4 -> 2020-12-31
A5: =MATCH(B5,AnnBS!A$200:A$405,0) -> 72 | B5: All items in Millions except Per Share data. | C5: =OFFSET(INDEX(AnnBS!$A$200:$O$500,$A5,COLUMN()-COLUMN($A5)),1,0) -> 2020-12-31 | D5: =OFFSET(INDEX(AnnBS!$A$200:$O$500,$A5,COLUMN()-COLUMN($A5)),1,0) -> 2019-12-31 | E5: =OFFSET(INDEX(AnnBS!$A$200:$O$500,$A5,COLUMN()-COLUMN($A5)),1,0) -> 2018-12-31 | F5: =OFFSET(INDEX(AnnBS!$A$200:$O$500,$A5,COLUMN()-COLUMN($A5)),1,0) -> 2017-12-31 | G5: =OFFSET(INDEX(AnnBS!$A$200:$O$500,$A5,COLUMN()-COLUMN($A5)),1,0) -> 2016-12-31
A7: =MATCH(B7,AnnBS!A$200:A$405,0) -> 75 | B7: Cash & Equivalents | C7: =INDEX(AnnBS!$A$200:$O$500,$A7,COLUMN()-COLUMN($A7)) -> 61954 | D7: =INDEX(AnnBS!$A$200:$O$500,$A7,COLUMN()-COLUMN($A7)) -> 54855 | E7: =INDEX(AnnBS!$A$200:$O$500,$A7,COLUMN()-COLUMN($A7)) -> 41114 | F7: =INDEX(AnnBS!$A$200:$O$500,$A7,COLUMN()-COLUMN($A7)) -> 41711 | G7: =INDEX(AnnBS!$A$200:$O$500,$A7,COLUMN()-COLUMN($A7)) -> 29449 | I7: =G7 -> 29449 | J7: =F7 -> 41711 | K7: =E7 -> 41114 | L7: =D7 -> 54855 | M7: =C7 -> 61954 | N7: Annual data
A8: =MATCH(B8,AnnBS!A$200:A$415,0) ->  | B8: Marketable Securities | C8: =INDEX(AnnBS!$A$200:$O$500,$A8,COLUMN()-COLUMN($A8)) ->  | D8: =INDEX(AnnBS!$A$200:$O$500,$A8,COLUMN()-COLUMN($A8)) ->  | E8: =INDEX(AnnBS!$A$200:$O$500,$A8,COLUMN()-COLUMN($A8)) ->  | F8: =INDEX(AnnBS!$A$200:$O$500,$A8,COLUMN()-COLUMN($A8)) ->  | G8: =INDEX(AnnBS!$A$200:$O$500,$A8,COLUMN()-COLUMN($A8)) ->  | I8: =IF(C8="--",0,C8) ->  | J8: =IF(D8="--",0,D8) ->  | N8: Annual data
A9: =MATCH(B9,AnnBS!A$200:A$405,0) -> 76 | B9: Receivables | C9: =INDEX(AnnBS!$A$200:$O$500,$A9,COLUMN()-COLUMN($A9)) -> 11335 | D9: =INDEX(AnnBS!$A$200:$O$500,$A9,COLUMN()-COLUMN($A9)) -> 9518 | E9: =INDEX(AnnBS!$A$200:$O$500,$A9,COLUMN()-COLUMN($A9)) -> 7587 | F9: =INDEX(AnnBS!$A$200:$O$500,$A9,COLUMN()-COLUMN($A9)) -> 5832 | G9: =INDEX(AnnBS!$A$200:$O$500,$A9,COLUMN()-COLUMN($A9)) -> 3993 | I9: =G9 -> 3993 | J9: =F9 -> 5832 | K9: =E9 -> 7587 | L9: =D9 -> 9518 | M9: =C9 -> 11335 | N9: Annual data
A10: =MATCH(B10,AnnBS!A$200:A$405,0) -> 78 | B10: Inventories | C10: =INDEX(AnnBS!$A$200:$O$500,$A10,COLUMN()-COLUMN($A10)) -> 0 | D10: =INDEX(AnnBS!$A$200:$O$500,$A10,COLUMN()-COLUMN($A10)) -> 0 | E10: =INDEX(AnnBS!$A$200:$O$500,$A10,COLUMN()-COLUMN($A10)) -> 0 | F10: =INDEX(AnnBS!$A$200:$O$500,$A10,COLUMN()-COLUMN($A10)) -> 0 | G10: =INDEX(AnnBS!$A$200:$O$500,$A10,COLUMN()-COLUMN($A10)) -> 0 | I10: =G10 -> 0 | J10: =F10 -> 0 | K10: =E10 -> 0 | L10: =D10 -> 0 | M10: =C10 -> 0 | N10: Annual data
I11: =IF(I10<0,-I10,I10) -> 0 | J11: =IF(J10<0,-J10,J10) -> 0 | K11: 0 | L11: 0 | M11: 0 | N11: Convert Inventories
A13: =MATCH(B13,AnnBS!A$200:A$415,0) -> 80 | B13: Total Current Assets | C13: =INDEX(AnnBS!$A$200:$O$500,$A13,COLUMN()-COLUMN($A13)) -> 75670 | D13: =INDEX(AnnBS!$A$200:$O$500,$A13,COLUMN()-COLUMN($A13)) -> 66225 | E13: =INDEX(AnnBS!$A$200:$O$500,$A13,COLUMN()-COLUMN($A13)) -> 50480 | F13: =INDEX(AnnBS!$A$200:$O$500,$A13,COLUMN()-COLUMN($A13)) -> 48563 | G13: =INDEX(AnnBS!$A$200:$O$500,$A13,COLUMN()-COLUMN($A13)) -> 34401 | I13: =G13 -> 34401 | J13: =F13 -> 48563 | K13: =E13 -> 50480 | L13: =D13 -> 66225 | M13: =C13 -> 75670 | N13: Annual data
A14: =MATCH(B14,AnnBS!A$200:A$415,0) -> 87 | B14: Total Assets | C14: =INDEX(AnnBS!$A$200:$O$500,$A14,COLUMN()-COLUMN($A14)) -> 159316 | D14: =INDEX(AnnBS!$A$200:$O$500,$A14,COLUMN()-COLUMN($A14)) -> 133376 | E14: =INDEX(AnnBS!$A$200:$O$500,$A14,COLUMN()-COLUMN($A14)) -> 97334 | F14: =INDEX(AnnBS!$A$200:$O$500,$A14,COLUMN()-COLUMN($A14)) -> 84524 | G14: =INDEX(AnnBS!$A$200:$O$500,$A14,COLUMN()-COLUMN($A14)) -> 64961 | I14: =G14 -> 64961 | J14: =F14 -> 84524 | K14: =E14 -> 97334 | L14: =D14 -> 133376 | M14: =C14 -> 159316
B15: Company Name from Zacks Ann Balance Sheet | C15: =AnnBS!J325 -> Cash & Equivalents | G15: =IF(SUM(G9:G14)=0,"Data missing","") ->  | I15: =IF(ISERROR(I13),I14,I13) -> 34401 | J15: =IF(ISERROR(J13),J14,J13) -> 48563 | K15: =IF(ISERROR(K13),K14,K13) -> 50480 | L15: =IF(ISERROR(L13),L14,L13) -> 66225 | M15: =IF(ISERROR(M13),M14,M13) -> 75670 | N15: if error(line 7, use line 8
I16: =I9*365/G40 -> 52.73337434 | J16: =J9*365/F40 -> 52.36218729 | K16: =K9*365/E40 -> 49.59445181 | L16: =L9*365/D40 -> 49.14027469 | M16: =M9*365/C40 -> 48.12743558 | N16: Days waiting for payment--Receivables
B17: Period Ending: | C17: =C4 -> 2020-12-31
B18: =IF(C19=0,"Caution--Some data for this company are not available.","") ->  | J18: =J14/I14-1 -> 0.3011499207 | K18: =K14/J14-1 -> 0.151554588 | L18: =L14/K14-1 -> 0.3702919843 | M18: =M14/L14-1 -> 0.1944877639 | N18: Total Assets % change
B19: =IF(C19="na","Last year Balance Sheet data has not yet reported.","") ->  | C19: =M7 -> 61954 | D19: (Warning if some data missing) | I19: =I49/I14 -> 0.1572789828 | J19: =J49/J14 -> 0.1885145048 | K19: =K49/K14 -> 0.2271765262 | L19: =L49/L14 -> 0.1385931502 | M19: =M49/M14 -> 0.1829445881 | N19: ROA
B20: Do not remove lines 18 & 19 above --they contain verbiage | N20: Net Income/Total Assets
I21: =I49/I35 -> 0.1726019529 | J21: =J49/J35 -> 0.2143193404 | K21: =K49/K35 -> 0.2628407051 | L21: =L49/L35 -> 0.1829220021 | M21: =M49/M35 -> 0.2271884013 | N21: Return on Equity ROE
A22: =MATCH(B22,AnnBS!A$200:A$415,0) -> 81 | B22: Net Property & Equipment | C22: =INDEX(AnnBS!$A$200:$O$500,$A22,COLUMN()-COLUMN($A22)) -> 45633 | D22: =INDEX(AnnBS!$A$200:$O$500,$A22,COLUMN()-COLUMN($A22)) -> 35323 | E22: =INDEX(AnnBS!$A$200:$O$500,$A22,COLUMN()-COLUMN($A22)) -> 24683 | F22: =INDEX(AnnBS!$A$200:$O$500,$A22,COLUMN()-COLUMN($A22)) -> 13721 | G22: =INDEX(AnnBS!$A$200:$O$500,$A22,COLUMN()-COLUMN($A22)) -> 8591 | I22: =G22 -> 8591 | J22: =F22 -> 13721 | K22: =E22 -> 24683 | L22: =D22 -> 35323 | M22: =C22 -> 45633
A23: =MATCH(B23,AnnBS!A$200:A$415,0) -> 87 | B23: Total Assets | C23: =INDEX(AnnBS!$A$200:$O$500,$A23,COLUMN()-COLUMN($A23)) -> 159316 | D23: =INDEX(AnnBS!$A$200:$O$500,$A23,COLUMN()-COLUMN($A23)) -> 133376 | E23: =INDEX(AnnBS!$A$200:$O$500,$A23,COLUMN()-COLUMN($A23)) -> 97334 | F23: =INDEX(AnnBS!$A$200:$O$500,$A23,COLUMN()-COLUMN($A23)) -> 84524 | G23: =INDEX(AnnBS!$A$200:$O$500,$A23,COLUMN()-COLUMN($A23)) -> 64961 | I23: =G23 -> 64961 | J23: =F23 -> 84524 | K23: =E23 -> 97334 | L23: =D23 -> 133376 | M23: =C23 -> 159316
A24: =MATCH(B24,AnnBS!A$200:A$415,0) -> 90 | B24: Accounts Payable | C24: =INDEX(AnnBS!$A$200:$O$500,$A24,COLUMN()-COLUMN($A24)) -> 1331 | D24: =INDEX(AnnBS!$A$200:$O$500,$A24,COLUMN()-COLUMN($A24)) -> 1363 | E24: =INDEX(AnnBS!$A$200:$O$500,$A24,COLUMN()-COLUMN($A24)) -> 820 | F24: =INDEX(AnnBS!$A$200:$O$500,$A24,COLUMN()-COLUMN($A24)) -> 380 | G24: =INDEX(AnnBS!$A$200:$O$500,$A24,COLUMN()-COLUMN($A24)) -> 302 | I24: =G24 -> 302 | J24: =F24 -> 380 | K24: =E24 -> 820 | L24: =D24 -> 1363 | M24: =C24 -> 1331
A25: =MATCH(B25,AnnBS!A$200:A$415,0) -> 96 | B25: Total Current Liabilities | C25: =INDEX(AnnBS!$A$200:$O$500,$A25,COLUMN()-COLUMN($A25)) -> 14981 | D25: =INDEX(AnnBS!$A$200:$O$500,$A25,COLUMN()-COLUMN($A25)) -> 15053 | E25: =INDEX(AnnBS!$A$200:$O$500,$A25,COLUMN()-COLUMN($A25)) -> 7017 | F25: =INDEX(AnnBS!$A$200:$O$500,$A25,COLUMN()-COLUMN($A25)) -> 3760 | G25: =INDEX(AnnBS!$A$200:$O$500,$A25,COLUMN()-COLUMN($A25)) -> 2875 | I25: =G25 -> 2875 | J25: =F25 -> 3760 | K25: =E25 -> 7017 | L25: =D25 -> 15053 | M25: =C25 -> 14981
A26: =MATCH(B26,AnnBS!A$200:A$415,0) -> 104 | B26: Total Liabilities | C26: =INDEX(AnnBS!$A$200:$O$500,$A26,COLUMN()-COLUMN($A26)) -> 31026 | D26: =INDEX(AnnBS!$A$200:$O$500,$A26,COLUMN()-COLUMN($A26)) -> 32322 | E26: =INDEX(AnnBS!$A$200:$O$500,$A26,COLUMN()-COLUMN($A26)) -> 13207 | F26: =INDEX(AnnBS!$A$200:$O$500,$A26,COLUMN()-COLUMN($A26)) -> 10177 | G26: =INDEX(AnnBS!$A$200:$O$500,$A26,COLUMN()-COLUMN($A26)) -> 5767 | I26: =G26 -> 5767 | J26: =F26 -> 10177 | K26: =E26 -> 13207 | L26: =D26 -> 32322 | M26: =C26 -> 31026 | N26: Total Liabilities
I27: =I40/I10 ->  | J27: =J40/J10 ->  | K27: =K40/K10 ->  | L27: =L40/L10 ->  | M27: =M40/M10 ->  | N27: Inventory turnover Ratio
A28: =MATCH(B28,AnnBS!A$200:A$415,0) -> 105 | B28: Shareholders Equity | C28: =INDEX(AnnBS!$A$200:$O$500,$A28,COLUMN()-COLUMN($A28)) -> 44196 | D28: =INDEX(AnnBS!$A$200:$O$500,$A28,COLUMN()-COLUMN($A28)) -> 43830 | E28: =INDEX(AnnBS!$A$200:$O$500,$A28,COLUMN()-COLUMN($A28)) -> 43465 | F28: =INDEX(AnnBS!$A$200:$O$500,$A28,COLUMN()-COLUMN($A28)) -> 43100 | G28: =INDEX(AnnBS!$A$200:$O$500,$A28,COLUMN()-COLUMN($A28)) -> 42735 | N28: Total Revenue/Total Inventory
N29: =M30/M35 -> 0 | O29: Debt to Equity
A30: =MATCH(B30,AnnBS!A$200:A$415,0) -> 100 | B30: Long-Term Debt | C30: =INDEX(AnnBS!$A$200:$O$500,$A30,COLUMN()-COLUMN($A30)) -> 0 | D30: =INDEX(AnnBS!$A$200:$O$500,$A30,COLUMN()-COLUMN($A30)) -> 0 | E30: =INDEX(AnnBS!$A$200:$O$500,$A30,COLUMN()-COLUMN($A30)) -> 0 | F30: =INDEX(AnnBS!$A$200:$O$500,$A30,COLUMN()-COLUMN($A30)) -> 0 | G30: =INDEX(AnnBS!$A$200:$O$500,$A30,COLUMN()-COLUMN($A30)) -> 0 | I30: =G30 -> 0 | J30: =F30 -> 0 | K30: =E30 -> 0 | L30: =D30 -> 0 | M30: =C30 -> 0 | N30: LT Debt
I31: =I68/I39 -> -0.1624936681 | J31: =J68/J39 -> -0.1656212334 | K31: =K68/K39 -> -0.2492030517 | L31: =L68/L39 -> -0.2136158536 | M31: =M68/M39 -> -0.1758273716 | N31: Cap expenditures as % of Sales
A32: =MATCH(B32,AnnBS!A$200:A$415,0) -> 115 | B32: Shares Outstanding | C32: =INDEX(AnnBS!$A$200:$O$500,$A32,COLUMN()-COLUMN($A32)) -> 2847.6 | D32: =INDEX(AnnBS!$A$200:$O$500,$A32,COLUMN()-COLUMN($A32)) -> 2852 | E32: =INDEX(AnnBS!$A$200:$O$500,$A32,COLUMN()-COLUMN($A32)) -> 2854 | F32: =INDEX(AnnBS!$A$200:$O$500,$A32,COLUMN()-COLUMN($A32)) -> 2906 | G32: =INDEX(AnnBS!$A$200:$O$500,$A32,COLUMN()-COLUMN($A32)) -> 2886 | I32: =G32 -> 2886 | J32: =F32 -> 2906 | K32: =E32 -> 2854 | L32: =D32 -> 2852 | M32: =C32 -> 2847.6 | N32: Shares
I33: =IF(ISERROR(I13),I14/I35,I13/I25) -> 11.96556522 | J33: =IF(ISERROR(J13),J14/J35,J13/J25) -> 12.91569149 | K33: =IF(ISERROR(K13),K14/K35,K13/K25) -> 7.193957532 | L33: =IF(ISERROR(L13),L14/L35,L13/L25) -> 4.399455258 | M33: =IF(ISERROR(M13),M14/M35,M13/M25) -> 5.051064682 | N33: Current Ratio
N34: (Total Curr Ass-Inv)/Curr Liab
A35: =MATCH(B35,AnnBS!A$200:A$415,0) -> 112 | B35: Total Shareholder's Equity | C35: =INDEX(AnnBS!$A$200:$O$500,$A35,COLUMN()-COLUMN($A35)) -> 128290 | D35: =INDEX(AnnBS!$A$200:$O$500,$A35,COLUMN()-COLUMN($A35)) -> 101054 | E35: =INDEX(AnnBS!$A$200:$O$500,$A35,COLUMN()-COLUMN($A35)) -> 84127 | F35: =INDEX(AnnBS!$A$200:$O$500,$A35,COLUMN()-COLUMN($A35)) -> 74347 | G35: =INDEX(AnnBS!$A$200:$O$500,$A35,COLUMN()-COLUMN($A35)) -> 59194 | I35: =G35 -> 59194 | J35: =F35 -> 74347 | K35: =E35 -> 84127 | L35: =D35 -> 101054 | M35: =C35 -> 128290
I36: =IF(ISERROR(I13),(I15-I10)/I35,(I13-I10)/I25) -> 11.96556522 | J36: =IF(ISERROR(J13),(J15-J10)/J35,(J13-J10)/J25) -> 12.91569149 | K36: =IF(ISERROR(K13),(K15-K10)/K35,(K13-K10)/K25) -> 7.193957532 | L36: =IF(ISERROR(L13),(L15-L10)/L35,(L13-L10)/L25) -> 4.399455258 | M36: =IF(ISERROR(M13),(M15-M10)/M35,(M13-M10)/M25) -> 5.051064682 | N36: Quick Ratio
N37: Total Curr Assets/Total Curr Liabilities
C38: =Analysis!C4 -> (Over 10 Billion in sales) | I38: =I49/(I35+I29) -> 0.1726019529 | J38: =J49/(J35+J29) -> 0.2143193404 | K38: =K49/(K35+K29) -> 0.2628407051 | L38: =L49/(L35+L29) -> 0.1829220021 | M38: =M49/(M35+M29) -> 0.2271884013 | N38: ROC = Net Profit/(LT Debt+Equity)
B39: Annual Income Statement | I39: =G40 -> 27638 | J39: =F40 -> 40653 | K39: =E40 -> 55838 | L39: =D40 -> 70697 | M39: =C40 -> 85965 | N39: Revenues
A40: =MATCH(B40,Income!A$200:A$411,0) -> 74 | B40: Sales | C40: =INDEX(Income!$A$200:$AA$500,$A40,COLUMN()-COLUMN($A40)) -> 85965 | D40: =INDEX(Income!$A$200:$AA$500,$A40,COLUMN()-COLUMN($A40)) -> 70697 | E40: =INDEX(Income!$A$200:$AA$500,$A40,COLUMN()-COLUMN($A40)) -> 55838 | F40: =INDEX(Income!$A$200:$AA$500,$A40,COLUMN()-COLUMN($A40)) -> 40653 | G40: =INDEX(Income!$A$200:$AA$500,$A40,COLUMN()-COLUMN($A40)) -> 27638 | I40: =I39/5 -> 5527.6 | J40: =J39/5 -> 8130.6 | K40: 11167.6 | L40: 14139.4 | M40: 17193 | N40: divided by 5
J41: =J40/I40-1 -> 0.4709096172 | K41: =K40/J40-1 -> 0.373527169 | L41: =L40/K40-1 -> 0.2661091013 | M41: =M40/L40-1 -> 0.2159639023 | N41: Revenue % change
A42: =MATCH(B42,Income!A$200:A$411,0) -> 75 | B42: Cost Of Goods | C42: =INDEX(Income!$A$200:$AA$500,$A42,COLUMN()-COLUMN($A42)) -> 16692 | D42: =INDEX(Income!$A$200:$AA$500,$A42,COLUMN()-COLUMN($A42)) -> 12770 | E42: =INDEX(Income!$A$200:$AA$500,$A42,COLUMN()-COLUMN($A42)) -> 9355 | F42: =INDEX(Income!$A$200:$AA$500,$A42,COLUMN()-COLUMN($A42)) -> 5454 | G42: =INDEX(Income!$A$200:$AA$500,$A42,COLUMN()-COLUMN($A42)) -> 3789 | I42: =G42 -> 3789 | J42: =F42 -> 5454 | K42: =E42 -> 9355 | L42: =D42 -> 12770 | M42: =C42 -> 16692
A45: =MATCH(B45,Income!A$200:A$411,0) -> 91 | B45: Depreciation & Amortization (Cash Flow) | C45: =INDEX(Income!$A$200:$AA$500,$A45,COLUMN()-COLUMN($A45)) -> 6862 | D45: =INDEX(Income!$A$200:$AA$500,$A45,COLUMN()-COLUMN($A45)) -> 5741 | E45: =INDEX(Income!$A$200:$AA$500,$A45,COLUMN()-COLUMN($A45)) -> 4315 | F45: =INDEX(Income!$A$200:$AA$500,$A45,COLUMN()-COLUMN($A45)) -> 3025 | G45: =INDEX(Income!$A$200:$AA$500,$A45,COLUMN()-COLUMN($A45)) -> 2342
I46: =(I39-I42)/I39 -> 0.8629061437 | J46: =(J39-J42)/J39 -> 0.8658401594 | K46: =(K39-K42)/K39 -> 0.8324617644 | L46: =(L39-L42)/L39 -> 0.8193699874 | M46: =(M39-M42)/M39 -> 0.8058279532 | N46: Gross Margin--Annual
A47: =MATCH(B47,Income!A$200:A$411,0) -> 78 | B47: Income After Depreciation & Amortization | C47: =INDEX(Income!$A$200:$AA$500,$A47,COLUMN()-COLUMN($A47)) -> 32671 | D47: =INDEX(Income!$A$200:$AA$500,$A47,COLUMN()-COLUMN($A47)) -> 23986 | E47: =INDEX(Income!$A$200:$AA$500,$A47,COLUMN()-COLUMN($A47)) -> 24913 | F47: =INDEX(Income!$A$200:$AA$500,$A47,COLUMN()-COLUMN($A47)) -> 20203 | G47: =INDEX(Income!$A$200:$AA$500,$A47,COLUMN()-COLUMN($A47)) -> 12427 | I47: =G47 -> 12427 | J47: =F47 -> 20203 | K47: =E47 -> 24913 | L47: =D47 -> 23986 | M47: =C47 -> 32671 | N47: (Revenue-COGS)/Revenue
A48: =MATCH(B48,Income!A$200:A$411,0) -> 81 | B48: Pretax Income | C48: =INDEX(Income!$A$200:$AA$500,$A48,COLUMN()-COLUMN($A48)) -> 33180 | D48: =INDEX(Income!$A$200:$AA$500,$A48,COLUMN()-COLUMN($A48)) -> 24812 | E48: =INDEX(Income!$A$200:$AA$500,$A48,COLUMN()-COLUMN($A48)) -> 25361 | F48: =INDEX(Income!$A$200:$AA$500,$A48,COLUMN()-COLUMN($A48)) -> 20594 | G48: =INDEX(Income!$A$200:$AA$500,$A48,COLUMN()-COLUMN($A48)) -> 12518 | I48: =I47/I39 -> 0.4496345611 | J48: =J47/J39 -> 0.4969620938 | K48: =K47/K39 -> 0.4461656936 | L48: =L47/L39 -> 0.3392788944 | M48: =M47/M39 -> 0.3800500204 | N48: Operating Margin
A49: =MATCH(B49,Income!A$200:A$411,0) -> 88 | B49: Net Income | C49: =INDEX(Income!$A$200:$AA$500,$A49,COLUMN()-COLUMN($A49)) -> 29146 | D49: =INDEX(Income!$A$200:$AA$500,$A49,COLUMN()-COLUMN($A49)) -> 18485 | E49: =INDEX(Income!$A$200:$AA$500,$A49,COLUMN()-COLUMN($A49)) -> 22112 | F49: =INDEX(Income!$A$200:$AA$500,$A49,COLUMN()-COLUMN($A49)) -> 15934 | G49: =INDEX(Income!$A$200:$AA$500,$A49,COLUMN()-COLUMN($A49)) -> 10217 | I49: =G49 -> 10217 | J49: =F49 -> 15934 | K49: =E49 -> 22112 | L49: =D49 -> 18485 | M49: =C49 -> 29146 | N49: (Operating Income/Revenue
I50: =I49/I39 -> 0.3696721905 | J50: =J49/J39 -> 0.3919513935 | K50: =K49/K39 -> 0.3960027222 | L50: =L49/L39 -> 0.2614679548 | M50: =M49/M39 -> 0.3390449602 | N50: Net Profit Margin
N51: (Net Income/Revenue
M52: =(G48+G67+G59)/(F48+F67+F59)-1 -> -0.3931539305 | N52: Operating Cash Flow annual change
I53: =I54/I32 -> 0.0003465003465 | J53: =J54/J32 -> 0.0003441156228 | K53: 0.000350385424 | L53: 0.000350631136 | M53: 0.0003511729175 | N53: Dividend per share
I54: =1-G68 -> 1 | J54: =1-F68 -> 1 | K54: =1-E68 -> 1 | L54: =1-D68 -> 1 | M54: =1-C68 -> 1 | N54: Total Dividend
A55: =MATCH(B55,Income!A$200:A$411,0) -> 80 | B55: Interest Expense | C55: =INDEX(Income!$A$200:$AA$500,$A55,COLUMN()-COLUMN($A55)) -> 0 | D55: =INDEX(Income!$A$228:$AA$528,$A55,COLUMN()-COLUMN($A55)) -> 2006 | E55: =INDEX(Income!$A$228:$AA$528,$A55,COLUMN()-COLUMN($A55)) -> 1835 | F55: =INDEX(Income!$A$228:$AA$528,$A55,COLUMN()-COLUMN($A55)) -> 287 | G55: =INDEX(Income!$A$228:$AA$528,$A55,COLUMN()-COLUMN($A55)) -> 953
B56: Convert from negative number | C56: =IF(C55<0,-C55,C55) -> 0 | D56: =IF(D55<0,-D55,D55) -> 2006 | E56: 1835 | F56: 287 | G56: 953 | I56: =IF(I53="--","",I53+I69) -> -1.555786556 | J56: =IF(J53="--","",J53+J69) -> -2.316586373 | K56: =IF(K53="--","",K53+K69) -> -4.875262789 | L56: =IF(L53="--","",L53+L69) -> -5.294880785 | M56: =IF(M53="--","",M53+M69) -> -5.307627476 | N56: Div.+ Cap Expense/share
N57: =IF(C53="--",0,IF(C54="--","None",M64/M54)) -> 38747 | O57: Div to Cash from Operations
A58: =MATCH(B58,Income!A$200:A$411,0) -> 96 | B58: Diluted Net EPS | C58: =INDEX(Income!$A$200:$AA$500,$A58,COLUMN()-COLUMN($A58)) -> 10.09 | D58: =INDEX(Income!$A$200:$AA$500,$A58,COLUMN()-COLUMN($A58)) -> 6.43 | E58: =INDEX(Income!$A$200:$AA$500,$A58,COLUMN()-COLUMN($A58)) -> 7.57 | F58: =INDEX(Income!$A$200:$AA$500,$A58,COLUMN()-COLUMN($A58)) -> 5.39 | G58: =INDEX(Income!$A$200:$AA$500,$A58,COLUMN()-COLUMN($A58)) -> 3.49 | I58: =(C58/D58)-1 -> 0.5692068429 | J58: =(D58/E58)-1 -> -0.1505944518 | K58: =(E58/F58)-1 -> 0.4044526902 | L58: =(F58/G58)-1 -> 0.5444126074 | N58: =AVERAGE(I58:L58) -> 0.3418694222 | O58: Avg. EPS growth
A59: =MATCH(B59,Income!A$200:A$411,0) -> 82 | B59: Income Taxes | C59: =INDEX(Income!$A$200:$AA$500,$A59,COLUMN()-COLUMN($A59)) -> 4034 | D59: =INDEX(Income!$A$200:$AA$500,$A59,COLUMN()-COLUMN($A59)) -> 6327 | E59: =INDEX(Income!$A$200:$AA$500,$A59,COLUMN()-COLUMN($A59)) -> 3249 | F59: =INDEX(Income!$A$200:$AA$500,$A59,COLUMN()-COLUMN($A59)) -> 4660 | G59: =INDEX(Income!$A$200:$AA$500,$A59,COLUMN()-COLUMN($A59)) -> 2301
A60: =MATCH(B60,Income!A$200:A$411,0) -> 75 | B60: Cost of Goods | C60: =INDEX(Income!$A$200:$AA$500,$A60,COLUMN()-COLUMN($A60)) -> 16692 | D60: =INDEX(Income!$A$200:$AA$500,$A60,COLUMN()-COLUMN($A60)) -> 12770 | E60: =INDEX(Income!$A$200:$AA$500,$A60,COLUMN()-COLUMN($A60)) -> 9355 | F60: =INDEX(Income!$A$200:$AA$500,$A60,COLUMN()-COLUMN($A60)) -> 5454 | G60: =INDEX(Income!$A$200:$AA$500,$A60,COLUMN()-COLUMN($A60)) -> 3789 | N60: =C71*C32/C40 -> 0.4507299482 | O60: Free Cahflow Margin
I61: =I64/I49 -> 1.57658804 | J61: =J64/J49 -> 1.519769047 | K61: =K64/K49 -> 1.323896527 | L61: =IF(L64="--","N/A",L64/L49) -> 1.964511766 | M61: =IF(M64="--","N/A",M64/M49) -> 1.329410554 | N61: Earnings Confidence Rating
B62: Cashflow | M62: =(M49-M70)/AVERAGE(L14:M14) -> -0.168880598 | N62: Quality of Earnings Ratio
A63: =MATCH(B63,CFlow!A$200:A$350,0) -> 73 | B63: Net Income (Loss) | C63: =INDEX(CFlow!$A$200:$M$500,$A63,COLUMN()-COLUMN($A63)) -> 29146 | D63: =INDEX(CFlow!$A$200:$M$500,$A63,COLUMN()-COLUMN($A63)) -> 18485 | E63: =INDEX(CFlow!$A$200:$M$500,$A63,COLUMN()-COLUMN($A63)) -> 22112 | F63: =INDEX(CFlow!$A$200:$M$500,$A63,COLUMN()-COLUMN($A63)) -> 15934 | G63: =INDEX(CFlow!$A$200:$M$500,$A63,COLUMN()-COLUMN($A63)) -> 10217 | I63: =G63 -> 10217 | J63: =F63 -> 15934 | K63: =E63 -> 22112 | L63: =D63 -> 18485 | M63: =C63 -> 29146
A64: =MATCH(B64,CFlow!A$200:A$350,0) -> 78 | B64: Net Cash From Operating Activities | C64: =INDEX(CFlow!$A$200:$M$500,$A64,COLUMN()-COLUMN($A64)) -> 38747 | D64: =INDEX(CFlow!$A$200:$M$500,$A64,COLUMN()-COLUMN($A64)) -> 36314 | E64: =INDEX(CFlow!$A$200:$M$500,$A64,COLUMN()-COLUMN($A64)) -> 29274 | F64: =INDEX(CFlow!$A$200:$M$500,$A64,COLUMN()-COLUMN($A64)) -> 24216 | G64: =INDEX(CFlow!$A$200:$M$500,$A64,COLUMN()-COLUMN($A64)) -> 16108 | I64: =G64 -> 16108 | J64: =F64 -> 24216 | K64: =E64 -> 29274 | L64: =D64 -> 36314 | M64: =C64 -> 38747 | N64: Cash from Operations
I65: =C64/C32 -> 13.60689704 | J65: =D64/D32 -> 12.73281907 | K65: 10.2571829 | L65: 8.333103923 | M65: 5.581427581 | N65: Annual Free Cash Flow/share
A66: =MATCH(B66,CFlow!A$200:A$350,0) -> 79 | B66: Property & Equipment | C66: =INDEX(CFlow!$A$200:$M$500,$A66,COLUMN()-COLUMN($A66)) -> -15115 | D66: =INDEX(CFlow!$A$200:$M$500,$A66,COLUMN()-COLUMN($A66)) -> -15102 | E66: =INDEX(CFlow!$A$200:$M$500,$A66,COLUMN()-COLUMN($A66)) -> -13915 | F66: =INDEX(CFlow!$A$200:$M$500,$A66,COLUMN()-COLUMN($A66)) -> -6733 | G66: =INDEX(CFlow!$A$200:$M$500,$A66,COLUMN()-COLUMN($A66)) -> -4491 | I66: =1-G66 -> 4492 | J66: =1-F66 -> 6734 | K66: =1-E66 -> 13916 | L66: =1-D66 -> 15103 | M66: =1-C66 -> 15116 | N66: Property & Equipment
A67: =MATCH(B67,CFlow!A$200:A$350,0) -> 74 | B67: Depreciation/Amortization & Depletion | C67: =INDEX(CFlow!$A$200:$M$500,$A67,COLUMN()-COLUMN($A67)) -> 6862 | D67: =INDEX(CFlow!$A$200:$M$500,$A67,COLUMN()-COLUMN($A67)) -> 5741 | E67: =INDEX(CFlow!$A$200:$M$500,$A67,COLUMN()-COLUMN($A67)) -> 4315 | F67: =INDEX(CFlow!$A$200:$M$500,$A67,COLUMN()-COLUMN($A67)) -> 3025 | G67: =INDEX(CFlow!$A$200:$M$500,$A67,COLUMN()-COLUMN($A67)) -> 2342 | I67: =I65/$G$32 -> 0.004714794538 | J67: =J65/$G$32 -> 0.004411926221 | K67: =K65/$G$32 -> 0.003554117429 | L67: =L65/$G$32 -> 0.002887423397 | M67: =M65/$G$32 -> 0.001933966591 | N67: Per share Free Cash Flow
A68: =MATCH(B68,CFlow!A$200:A$350,0) -> 89 | B68: Payment of Dividends & Other Distributions | C68: =INDEX(CFlow!$A$200:$M$500,$A68,COLUMN()-COLUMN($A68)) -> 0 | D68: =INDEX(CFlow!$A$200:$M$500,$A68,COLUMN()-COLUMN($A68)) -> 0 | E68: =INDEX(CFlow!$A$200:$M$500,$A68,COLUMN()-COLUMN($A68)) -> 0 | F68: =INDEX(CFlow!$A$200:$M$500,$A68,COLUMN()-COLUMN($A68)) -> 0 | G68: =INDEX(CFlow!$A$200:$M$500,$A68,COLUMN()-COLUMN($A68)) -> 0 | I68: =G66 -> -4491 | J68: =F66 -> -6733 | K68: =E66 -> -13915 | L68: =D66 -> -15102 | M68: =C66 -> -15115 | N68: Capital Expenditures
B69: (convert to positive number) | C69: =1-C68 -> 1 | D69: =1-D68 -> 1 | E69: 1 | F69: 1 | G69: 1 | I69: =I68/I32 -> -1.556133056 | J69: =J68/J32 -> -2.316930489 | K69: =K68/K32 -> -4.875613174 | L69: =L68/L32 -> -5.295231417 | M69: =M68/M32 -> -5.307978649 | N69: Cap Exp per share
A70: =MATCH(B70,CFlow!A$200:A$350,0) -> 78 | B70: Net Cash From Operating Activities | C70: =INDEX(CFlow!$A$200:$M$500,$A70,COLUMN()-COLUMN($A70)) -> 38747 | D70: =INDEX(CFlow!$A$200:$M$500,$A70,COLUMN()-COLUMN($A70)) -> 36314 | E70: =INDEX(CFlow!$A$200:$M$500,$A70,COLUMN()-COLUMN($A70)) -> 29274 | F70: =INDEX(CFlow!$A$200:$M$500,$A70,COLUMN()-COLUMN($A70)) -> 24216 | G70: =INDEX(CFlow!$A$200:$M$500,$A70,COLUMN()-COLUMN($A70)) -> 16108 | I70: =I64-I54-I68 -> 20598 | J70: =J64-J54-J68 -> 30948 | K70: 43188 | L70: 51415 | M70: 53861 | N70: Free Cash Flow | O70: (Cash from Oper-PP&E-Dividends)
B71: Free Cashflow per Share | C71: =C64/C32 -> 13.60689704 | D71: =D64/D32 -> 12.73281907 | E71: 10.2571829 | F71: 8.333103923 | G71: 5.581427581 | O71: formula from Investopedia
B72: Latest Annual Free Cashflow | G72: =G71*G32 -> 16108 | I72: =G71 -> 5.581427581 | J72: =F71 -> 8.333103923 | K72: =E71 -> 10.2571829 | L72: =D71 -> 12.73281907 | M72: =C71 -> 13.60689704 | N72: =IF(M72="--","No data",(M72/L72)) -> 1.068647639 | O72: Change from prior year
B73: NAME OF COMPANY | C73: =OFFSET(AnnBS!A119,-60,0,1) -> Insurance | D73: =AnnBS!A60 -> Investing
B74: Company Name from Zacks Ann Balance Sheet | C74: =AnnBS!J203 -> Facebook, Inc. (FB) | I74: =C63/I9-1 -> 6.299273729 | J74: =D63/J9-1 -> 2.169581619 | K74: =E63/K9-1 -> 1.914458943 | L74: =F63/L9-1 -> 0.6740911956 | M74: =G63/M9-1 -> -0.09863255404 | N74: % difference-Net Earnings/Receivables
M75: =IF(G69="--",0,G69) -> 1
I76: =IF(SUM(C63:C64)=0,"CAUTION The most recent fiscal year data are incomplete or not yet reported","") ->  | J76: Yellow cell contains data
A78: =MATCH(B78,AnnBS!A$100:A$400,0) ->  | B78: (Real Time Quote from BATS) | D78: =AnnBS!J210 -> (Delayed Data from NSDQ) | E78: =AnnBS!J320 -> Notes Receivable | F78: Vlookup price AnnBS
A79: =MATCH(B79,AnnBS!A$100:A$400,0) ->  | B79: (Delayed Data from NSDQ) --old location | C79: =OFFSET(INDEX(AnnBS!$A$100:$I$500,$A78,COLUMN()-COLUMN($A78)),1,0) ->  | E79: =AnnBS!A313 -> Total Common Equity | F79: 1st price location
C80: =IF(E79="Data feed",C79,E79) -> Total Common Equity | D80: =MID(E78,2,3) -> ote | E80: =AnnBS!A317 -> All items in Millions except Per Share data. | F80: 2nd price location
B81: =AnnBS!J204 -> 373.06 | C81: Text to value >>> | D81: =VALUE(E81) ->  | E81: =IF(ISNUMBER(E79),E79,D80) -> ote
B82: Price to use above^^^^
B84: QUARTERLY BALANCE SHEET DATA
A85: =MATCH(B85,AnnBS!A$200:A$415,0) -> 72 | B85: All items in Millions except Per Share data. | C85: =OFFSET(INDEX(AnnBS!$A$400:$O$500,$A85,COLUMN()-COLUMN($A85)),1,0) -> 0 | D85: =OFFSET(INDEX(AnnBS!$A$400:$O$500,$A85,COLUMN()-COLUMN($A85)),1,0) -> 0 | E85: =OFFSET(INDEX(AnnBS!$A$400:$O$500,$A85,COLUMN()-COLUMN($A85)),1,0) -> 0 | F85: =OFFSET(INDEX(AnnBS!$A$400:$O$500,$A85,COLUMN()-COLUMN($A85)),1,0) -> 0 | G85: =OFFSET(INDEX(AnnBS!$A$400:$O$500,$A85,COLUMN()-COLUMN($A85)),1,0) -> 0 | I85: =G85 -> 0 | J85: =F85 -> 0 | K85: =E85 -> 0 | L85: =D85 -> 0 | M85: =C85 -> 0
B90: Free Cash Flow per Share | C90: =INDEX(#REF!,$A90,COLUMN()-COLUMN($A90)) ->  | D90: =INDEX(#REF!,$A90,COLUMN()-COLUMN($A90)) ->  | E90: =INDEX(#REF!,$A90,COLUMN()-COLUMN($A90)) ->  | F90: =INDEX(#REF!,$A90,COLUMN()-COLUMN($A90)) ->  | G90: =INDEX(#REF!,$A90,COLUMN()-COLUMN($A90)) ->  | I90: =C90 ->  | J90: =D90 ->  | K90: =E90 ->  | L90: =F90 ->  | M90: =G90 ->  | N90: Cash from Operating Activities per share
I91: =IF(I95=0,"No Div.",I90/I95) ->  | J91: =IF(J95=0,"No Div.",J90/J95) ->  | K91: =IF(K95=0,"No Div.",K90/K95) ->  | L91: =IF(L95=0,"No Div.",L90/L95) ->  | M91: =IF(M95=0,"No Div.",M90/M95) ->  | N91: ratio: Dividends to Cash from Operations
I93: =C86/C97 -> 0 | J93: =D86/D97 -> 0 | K93: =E86/E97 -> 0 | L93: =F86/F97 -> 0 | M93: =G86/G97 -> 0 | N93: Ernings confidence rating
A94: =MATCH(B94,AnnBS!A$400:A$415,0) ->  | B94: Dividends Per Share | C94: =INDEX(Income!$A$350:W$500,$A94,COLUMN()-COLUMN($A94)) ->  | D94: =INDEX(Income!$A$350:X$500,$A94,COLUMN()-COLUMN($A94)) ->  | E94: =INDEX(Income!$A$350:Y$500,$A94,COLUMN()-COLUMN($A94)) ->  | F94: =INDEX(Income!$A$350:Z$500,$A94,COLUMN()-COLUMN($A94)) ->  | G94: =INDEX(Income!$A$350:AA$500,$A94,COLUMN()-COLUMN($A94)) -> 
A95: =MATCH(B95,Income!$A$200:$A$411,0) -> 74 | B95: Sales | C95: =INDEX(Income!$A$200:W$500,$A95,COLUMN()-COLUMN($A95)) -> 85965 | D95: =INDEX(Income!$A$200:X$500,$A95,COLUMN()-COLUMN($A95)) -> 70697 | E95: =INDEX(Income!$A$200:Y$500,$A95,COLUMN()-COLUMN($A95)) -> 55838 | F95: =INDEX(Income!$A$200:Z$500,$A95,COLUMN()-COLUMN($A95)) -> 40653 | G95: =INDEX(Income!$A$200:AA$500,$A95,COLUMN()-COLUMN($A95)) -> 27638 | I95: =G95 -> 27638 | J95: =F95 -> 40653 | K95: =E95 -> 55838 | L95: =D95 -> 70697 | M95: =C95 -> 85965 | N95: Q Sales
A96: =MATCH(B96,Income!$A$200:$A$411,0) -> 81 | B96: Pretax Income | C96: =INDEX(Income!$A$200:W$500,$A96,COLUMN()-COLUMN($A96)) -> 33180 | D96: =INDEX(Income!$A$200:X$500,$A96,COLUMN()-COLUMN($A96)) -> 24812 | E96: =INDEX(Income!$A$200:Y$500,$A96,COLUMN()-COLUMN($A96)) -> 25361 | F96: =INDEX(Income!$A$200:Z$500,$A96,COLUMN()-COLUMN($A96)) -> 20594 | G96: =INDEX(Income!$A$200:AA$500,$A96,COLUMN()-COLUMN($A96)) -> 12518 | I96: =G97 -> 10217 | J96: =F97 -> 15934 | K96: =E97 -> 22112 | L96: =D97 -> 18485 | M96: =C97 -> 29146 | N96: Net Income
A97: =MATCH(B97,Income!$A$200:$A$411,0) -> 88 | B97: Net Income | C97: =INDEX(Income!$A$200:W$500,$A97,COLUMN()-COLUMN($A97)) -> 29146 | D97: =INDEX(Income!$A$200:X$500,$A97,COLUMN()-COLUMN($A97)) -> 18485 | E97: =INDEX(Income!$A$200:Y$500,$A97,COLUMN()-COLUMN($A97)) -> 22112 | F97: =INDEX(Income!$A$200:Z$500,$A97,COLUMN()-COLUMN($A97)) -> 15934 | G97: =INDEX(Income!$A$200:AA$500,$A97,COLUMN()-COLUMN($A97)) -> 10217 | I97: =C97*C32 -> 82996149.6 | J97: =D97*D32 -> 52719220 | K97: =E97*E32 -> 63107648 | L97: =F97*F32 -> 46304204 | M97: =G97*G32 -> 29486262 | N97: Q TotalNet Income
A98: =MATCH(B98,Income!$A$200:$A$411,0) -> 75 | B98: Cost Of Goods | C98: =INDEX(Income!$A$200:W$500,$A98,COLUMN()-COLUMN($A98)) -> 16692 | D98: =INDEX(Income!$A$200:X$500,$A98,COLUMN()-COLUMN($A98)) -> 12770 | E98: =INDEX(Income!$A$200:Y$500,$A98,COLUMN()-COLUMN($A98)) -> 9355 | F98: =INDEX(Income!$A$200:Z$500,$A98,COLUMN()-COLUMN($A98)) -> 5454 | G98: =INDEX(Income!$A$200:AA$500,$A98,COLUMN()-COLUMN($A98)) -> 3789 | J98: =(D95/C95)-1 -> -0.1776071657 | K98: =(E95/D95)-1 -> -0.2101786497 | L98: =(F95/E95)-1 -> -0.2719474193 | M98: =(G95/F95)-1 -> -0.3201485745 | N98: Sales growth
A99: =MATCH(B99,Income!$A$200:$A$411,0) -> 88 | B99: Net Income | C99: =INDEX(Income!$A$200:W$500,$A99,COLUMN()-COLUMN($A99)) -> 29146 | D99: =INDEX(Income!$A$200:X$500,$A99,COLUMN()-COLUMN($A99)) -> 18485 | E99: =INDEX(Income!$A$200:Y$500,$A99,COLUMN()-COLUMN($A99)) -> 22112 | F99: =INDEX(Income!$A$200:Z$500,$A99,COLUMN()-COLUMN($A99)) -> 15934 | G99: =INDEX(Income!$A$200:AA$500,$A99,COLUMN()-COLUMN($A99)) -> 10217 | I99: =G98 -> 3789 | J99: =F98 -> 5454 | K99: =E98 -> 9355 | L99: =D98 -> 12770 | M99: =C98 -> 16692 | N99: Q Cost of good sold
A100: =MATCH(B100,Income!$A$200:$A$411,0) ->  | B100: Free Cash Flow | C100: =INDEX(Income!$A$200:W$500,$A100,COLUMN()-COLUMN($A100)) ->  | D100: =INDEX(Income!$A$200:X$500,$A100,COLUMN()-COLUMN($A100)) ->  | E100: =INDEX(Income!$A$200:Y$500,$A100,COLUMN()-COLUMN($A100)) ->  | F100: =INDEX(Income!$A$200:Z$500,$A100,COLUMN()-COLUMN($A100)) ->  | G100: =INDEX(Income!$A$200:AA$500,$A100,COLUMN()-COLUMN($A100)) ->  | I100: =I96/C95 -> 0.1188506951 | J100: =J96/D95 -> 0.2253843869 | K100: =K96/E95 -> 0.3960027222 | L100: =L96/F95 -> 0.45470199 | M100: =M96/G95 -> 1.054562559 | N100: Profitability on Revenues
A101: =MATCH(B101,Income!$A$200:$A$411,0) -> 86 | B101: Income From Cont. Operations | C101: =INDEX(Income!$A$200:W$500,$A101,COLUMN()-COLUMN($A101)) -> 29146 | D101: =INDEX(Income!$A$200:X$500,$A101,COLUMN()-COLUMN($A101)) -> 18485 | E101: =INDEX(Income!$A$200:Y$500,$A101,COLUMN()-COLUMN($A101)) -> 22112 | F101: =INDEX(Income!$A$200:Z$500,$A101,COLUMN()-COLUMN($A101)) -> 15934 | G101: =INDEX(Income!$A$200:AA$500,$A101,COLUMN()-COLUMN($A101)) -> 10217 | I101: =C100 ->  | J101: =D100 ->  | K101: =E100 ->  | L101: =F100 ->  | M101: =G100 ->  | N101: Free Cash Flow
I102: =C97/C95 -> 0.3390449602 | J102: =D97/D95 -> 0.2614679548 | K102: =E97/E95 -> 0.3960027222 | L102: =F97/F95 -> 0.3919513935 | M102: =G97/G95 -> 0.3696721905 | N102: Net Profit Margin
B103: Qtr Income data | I103: =(C95-C98)/C95 -> 0.8058279532 | J103: =(D95-D98)/D95 -> 0.8193699874 | K103: =(E95-E98)/E95 -> 0.8324617644 | L103: =(F95-F98)/F95 -> 0.8658401594 | M103: =(G95-G98)/G95 -> 0.8629061437 | N103: Quarterly Gross Margin
A104: =MATCH(B104,AnnBS!$A$200:$A$401,0) -> 81 | B104: Net Property & Equipment | C104: =INDEX(AnnBS!$A$200:N$500,$A104,COLUMN()-COLUMN($A104)) -> 45633 | D104: =INDEX(AnnBS!$A$200:O$500,$A104,COLUMN()-COLUMN($A104)) -> 35323 | E104: =INDEX(AnnBS!$A$200:P$500,$A104,COLUMN()-COLUMN($A104)) -> 24683 | F104: =INDEX(AnnBS!$A$200:Q$500,$A104,COLUMN()-COLUMN($A104)) -> 13721 | G104: =INDEX(AnnBS!$A$200:R$500,$A104,COLUMN()-COLUMN($A104)) -> 8591 | I104: =C99/C95 -> 0.3390449602 | J104: =D99/D95 -> 0.2614679548 | K104: =E99/E95 -> 0.3960027222 | L104: =F99/F95 -> 0.3919513935 | M104: =G99/G95 -> 0.3696721905 | N104: Operating Margin
I105: =1-C104 -> -45632 | J105: =1-D104 -> -35322 | K105: =1-E104 -> -24682 | L105: =1-F104 -> -13720 | M105: =1-G104 -> -8590 | N105: Property Plant & Equipment
A106: =MATCH(B106,AnnBS!$A$200:$A$401,0) -> 76 | B106: Receivables | C106: =INDEX(AnnBS!$A$200:N$500,$A106,COLUMN()-COLUMN($A106)) -> 11335 | D106: =INDEX(AnnBS!$A$200:O$500,$A106,COLUMN()-COLUMN($A106)) -> 9518 | E106: =INDEX(AnnBS!$A$200:P$500,$A106,COLUMN()-COLUMN($A106)) -> 7587 | F106: =INDEX(AnnBS!$A$200:Q$500,$A106,COLUMN()-COLUMN($A106)) -> 5832 | G106: =INDEX(AnnBS!$A$200:R$500,$A106,COLUMN()-COLUMN($A106)) -> 3993 | I106: =IF(C106="--","No data",C106/$C$113) -> 3.98054502 | J106: =IF(D106="--","No data",D106/$C$113) -> 3.342463829 | K106: =IF(E106="--","No data",E106/$C$113) -> 2.664348925 | L106: =IF(F106="--","No data",F106/$C$113) -> 2.048040455 | M106: =IF(G106="--","No data",G106/$C$113) -> 1.40223346 | N106: Accts Receivable per share
A107: =MATCH(B107,AnnBS!$A$200:$A$401,0) -> 78 | B107: Inventories | C107: =INDEX(AnnBS!$A$200:N$500,$A107,COLUMN()-COLUMN($A107)) -> 0 | D107: =INDEX(AnnBS!$A$200:O$500,$A107,COLUMN()-COLUMN($A107)) -> 0 | E107: =INDEX(AnnBS!$A$200:P$500,$A107,COLUMN()-COLUMN($A107)) -> 0 | F107: =INDEX(AnnBS!$A$200:Q$500,$A107,COLUMN()-COLUMN($A107)) -> 0 | G107: =INDEX(AnnBS!$A$200:R$500,$A107,COLUMN()-COLUMN($A107)) -> 0 | I107: =G107 -> 0 | J107: =F107 -> 0 | K107: =E107 -> 0 | L107: =D107 -> 0 | M107: =C107 -> 0 | N107: Q Inventories
I108: =C104/C95 -> 0.5308323155 | J108: =D104/D95 -> 0.4996393058 | K108: =E104/E95 -> 0.4420466349 | L108: =F104/F95 -> 0.3375150665 | M108: =G104/G95 -> 0.3108401476 | N108: Qtr Cap Expenditures/Sales
I109: =G104 -> 8591 | J109: =F104 -> 13721 | K109: =E104 -> 24683 | L109: =D104 -> 35323 | M109: =C104 -> 45633 | N109: PP&E per share
A110: =MATCH(B110,AnnBS!$A$200:$A$401,0) -> 87 | B110: Total assets | C110: =INDEX(AnnBS!$A$200:N$500,$A110,COLUMN()-COLUMN($A110)) -> 159316 | D110: =INDEX(AnnBS!$A$200:O$500,$A110,COLUMN()-COLUMN($A110)) -> 133376 | E110: =INDEX(AnnBS!$A$200:P$500,$A110,COLUMN()-COLUMN($A110)) -> 97334 | F110: =INDEX(AnnBS!$A$200:Q$500,$A110,COLUMN()-COLUMN($A110)) -> 84524 | G110: =INDEX(AnnBS!$A$200:R$500,$A110,COLUMN()-COLUMN($A110)) -> 64961 | I110: =C110 -> 159316 | J110: 133376 | K110: 97334 | L110: 84524 | M110: 64961
A111: =MATCH(B111,AnnBS!$A$200:$A$401,0) -> 91 | B111: Current Portion Long-Term Debt | C111: =INDEX(AnnBS!$A$200:N$500,$A111,COLUMN()-COLUMN($A111)) -> 0 | D111: =INDEX(AnnBS!$A$200:O$500,$A111,COLUMN()-COLUMN($A111)) -> 0 | E111: =INDEX(AnnBS!$A$200:P$500,$A111,COLUMN()-COLUMN($A111)) -> 0 | F111: =INDEX(AnnBS!$A$200:Q$500,$A111,COLUMN()-COLUMN($A111)) -> 0 | G111: =INDEX(AnnBS!$A$200:R$500,$A111,COLUMN()-COLUMN($A111)) -> 0 | I111: 0 | J111: 0 | K111: 0 | L111: 0 | M111: 0 | N111: Q Debt
A112: =MATCH(B112,AnnBS!$A$200:$A$401,0) -> 105 | B112: Shareholders Equity | C112: =INDEX(AnnBS!$A$200:N$500,$A112,COLUMN()-COLUMN($A112)) -> 44196 | D112: =INDEX(AnnBS!$A$200:O$500,$A112,COLUMN()-COLUMN($A112)) -> 43830 | E112: =INDEX(AnnBS!$A$200:P$500,$A112,COLUMN()-COLUMN($A112)) -> 43465 | F112: =INDEX(AnnBS!$A$200:Q$500,$A112,COLUMN()-COLUMN($A112)) -> 43100 | G112: =INDEX(AnnBS!$A$200:R$500,$A112,COLUMN()-COLUMN($A112)) -> 42735
A113: =MATCH(B113,AnnBS!$A$200:$A$401,0) -> 115 | B113: Shares Outstanding | C113: =INDEX(AnnBS!$A$200:N$500,$A113,COLUMN()-COLUMN($A113)) -> 2847.6 | D113: =INDEX(AnnBS!$A$200:O$500,$A113,COLUMN()-COLUMN($A113)) -> 2852 | E113: =INDEX(AnnBS!$A$200:P$500,$A113,COLUMN()-COLUMN($A113)) -> 2854 | F113: =INDEX(AnnBS!$A$200:Q$500,$A113,COLUMN()-COLUMN($A113)) -> 2906 | G113: =INDEX(AnnBS!$A$200:R$500,$A113,COLUMN()-COLUMN($A113)) -> 2886 | I113: =IF(I106="no data","N/A",(I106*91.5)/C95) -> 0.004236839055 | J113: =IF(J106="no data","N/A",(J106*91.5)/D95) -> 0.004326003089 | K113: =IF(K106="no data","N/A",(K106*91.5)/E95) -> 0.004365986007 | L113: =IF(L106="no data","N/A",(L106*91.5)/F95) -> 0.004609640165 | M113: =IF(M106="no data","N/A",(M106*91.5)/G95) -> 0.004642317156 | N113: Days waiting for payment
A114: =MATCH(B114,Income!$A$200:$A$411,0) -> 93 | B114: Earnings Per Share Data | C114: =INDEX(AnnBS!$A$200:N$500,$A114,COLUMN()-COLUMN($A114)) -> 11152 | D114: =INDEX(AnnBS!$A$200:O$500,$A114,COLUMN()-COLUMN($A114)) -> 11735 | E114: =INDEX(AnnBS!$A$200:P$500,$A114,COLUMN()-COLUMN($A114)) -> 5509 | F114: =INDEX(AnnBS!$A$200:Q$500,$A114,COLUMN()-COLUMN($A114)) -> 2892 | G114: =INDEX(AnnBS!$A$200:R$500,$A114,COLUMN()-COLUMN($A114)) -> 2203 | I114: =IF(I107=0,"0",C95/C107) -> 0 | J114: =IF(J107=0,"0",D95/D107) -> 0 | K114: =IF(K107=0,"0",E95/E107) -> 0 | L114: =IF(L107=0,"0",F95/F107) -> 0 | M114: =IF(M107=0,"0",G95/G107) -> 0 | N114: Inventory Turover
A116: =MATCH(B116,AnnBS!$A$200:$A$401,0) -> 80 | B116: Total Current Assets | C116: =INDEX(AnnBS!$A$200:N$500,$A116,COLUMN()-COLUMN($A116)) -> 75670 | D116: =INDEX(AnnBS!$A$200:O$500,$A116,COLUMN()-COLUMN($A116)) -> 66225 | E116: =INDEX(AnnBS!$A$200:P$500,$A116,COLUMN()-COLUMN($A116)) -> 50480 | F116: =INDEX(AnnBS!$A$200:Q$500,$A116,COLUMN()-COLUMN($A116)) -> 48563 | G116: =INDEX(AnnBS!$A$200:R$500,$A116,COLUMN()-COLUMN($A116)) -> 34401 | J116: =(D116/C116)-1 -> -0.1248182899 | K116: =(E116/D116)-1 -> -0.2377500944 | L116: =(F116/E116)-1 -> -0.03797543582 | M116: =(G116/F116)-1 -> -0.2916211931 | N116: Change in Assets growth
A117: =MATCH(B117,AnnBS!$A$200:$A$401,0) -> 96 | B117: Total Current Liabilities | C117: =INDEX(AnnBS!$A$200:N$500,$A117,COLUMN()-COLUMN($A117)) -> 14981 | D117: =INDEX(AnnBS!$A$200:O$500,$A117,COLUMN()-COLUMN($A117)) -> 15053 | E117: =INDEX(AnnBS!$A$200:P$500,$A117,COLUMN()-COLUMN($A117)) -> 7017 | F117: =INDEX(AnnBS!$A$200:Q$500,$A117,COLUMN()-COLUMN($A117)) -> 3760 | G117: =INDEX(AnnBS!$A$200:R$500,$A117,COLUMN()-COLUMN($A117)) -> 2875
C118: =INDEX(AnnBS!$A$200:N$500,$A118,COLUMN()-COLUMN($A118)) ->  | D118: =INDEX(AnnBS!$A$200:O$500,$A118,COLUMN()-COLUMN($A118)) ->  | E118: =INDEX(AnnBS!$A$200:P$500,$A118,COLUMN()-COLUMN($A118)) ->  | F118: =INDEX(AnnBS!$A$200:Q$500,$A118,COLUMN()-COLUMN($A118)) ->  | G118: =INDEX(AnnBS!$A$200:R$500,$A118,COLUMN()-COLUMN($A118)) ->  | I118: =G120 -> 0 | J118: =F120 -> 0 | K118: =E120 -> 0 | L118: =D120 -> 0 | M118: =C120 -> 0 | N118: Long-Term Debt
A119: =MATCH(B119,AnnBS!$A$200:$A$401,0) -> 115 | B119: Shares Outstanding | C119: =INDEX(AnnBS!$A$200:N$500,$A119,COLUMN()-COLUMN($A119)) -> 2847.6 | D119: =INDEX(AnnBS!$A$200:O$500,$A119,COLUMN()-COLUMN($A119)) -> 2852 | E119: =INDEX(AnnBS!$A$200:P$500,$A119,COLUMN()-COLUMN($A119)) -> 2854 | F119: =INDEX(AnnBS!$A$200:Q$500,$A119,COLUMN()-COLUMN($A119)) -> 2906 | G119: =INDEX(AnnBS!$A$200:R$500,$A119,COLUMN()-COLUMN($A119)) -> 2886 | I119: =C119 -> 2847.6 | J119: =D119 -> 2852 | K119: =E119 -> 2854 | L119: =F119 -> 2906 | M119: =G119 -> 2886 | N119: Qtr Shares Outstanding
A120: =MATCH(B120,AnnBS!$A$200:$A$401,0) -> 100 | B120: Long-Term Debt | C120: =INDEX(AnnBS!$A$200:N$500,$A120,COLUMN()-COLUMN($A120)) -> 0 | D120: =INDEX(AnnBS!$A$200:O$500,$A120,COLUMN()-COLUMN($A120)) -> 0 | E120: =INDEX(AnnBS!$A$200:P$500,$A120,COLUMN()-COLUMN($A120)) -> 0 | F120: =INDEX(AnnBS!$A$200:Q$500,$A120,COLUMN()-COLUMN($A120)) -> 0 | G120: =INDEX(AnnBS!$A$200:R$500,$A120,COLUMN()-COLUMN($A120)) -> 0 | I120: =(C116-C107)/C117 -> 5.051064682 | J120: =(D116-D107)/D117 -> 4.399455258 | K120: =(E116-E107)/E117 -> 7.193957532 | L120: =(F116-F107)/F117 -> 12.91569149 | M120: =(G116-G107)/G117 -> 11.96556522 | N120: Quick Ratio 1:1
I121: =C116/C117 -> 5.051064682 | J121: =D116/D117 -> 4.399455258 | K121: =E116/E117 -> 7.193957532 | L121: =F116/F117 -> 12.91569149 | M121: =G116/G117 -> 11.96556522 | N121: Current Ratio 2:1
I122: =C97/C116 -> 0.3851724594 | J122: =D97/D116 -> 0.2791241978 | K122: =E97/E116 -> 0.4380348653 | L122: =F97/F116 -> 0.3281098779 | M122: =G97/G116 -> 0.2969971803 | N122: ROA
A123: =MATCH(B123,'Bond rate'!A$1:A$435,0) -> 352 | B123: Ten-Year Treasury Constant Maturity | C123: =INDEX('Bond rate'!$A$1:$C$435,$A123,COLUMN()-COLUMN($A123)) -> 1.46 | I123: =I97/C112 -> 1877.910888 | J123: =J97/D112 -> 1202.811316 | K123: =K97/E112 -> 1451.918739 | L123: =L97/F112 -> 1074.34348 | M123: =M97/G112 -> 689.9792208 | N123: ROE
N124: ROC
C129: Instructions to convert cell with number and text to number or text only
C130: http://www.excelforum.com/excel-general/683911-need-to-copy-only-select-text-from-one-cell-to-another.html
C132: Do you mean take it out and show just the Numbers in an adjacent cell, leaving the original data intact? If A1 has the value, put this formula in an adjacent cell, then copy the cell down the entire data set.
B133: OFFSET(INDEX(AnnBS!$A$200:$I$500,$A4,COLUMN()-COLUMN($A4)),1,0)
C134: Cppy this formula into adjacent cell (add = equal sign to make it a formuls)
C135: LOOKUP(99^99,--("0"&MID(A1,MIN(SEARCH({0,1,2,3,4,5,6,7,8,9},A1&"0123456789")),ROW($1:$10000))))
C137: Now you have the numbers. If you want the numbers back in the original column REPLACING the original data:
C139: 1) highlight this whole new row of numbers
C140: 2) click CTRL-C to copy
C141: 3) click on the first cell in the original column
C142: 4) select EDIT > PASTE SPECIAL > Values
C144: TO JUST SEPARATE THE TWO PARTS into cells of their own: Requires a space between number and text
C146: 1) Highlight the original column of mixed data
C147: 2) Click on DATA > TEXT TO COLUMNS > DELIMITED > next
C148: 3) Click on [ ] Space
C149: 4) Finish
B151: In Excel, you can use VLOOKUP or INDEX/MATCH functions to reference the data in the web query. For example use a formula like =INDEX(D:D,MATCH("MSFT",B:B,0)) to get the Price for MSFT.
C152: LOOKUP(99^99,--("0"&MID(A1,MIN(SEARCH({0,1,2,3,4,5,6,7,8,9},A1&"0123456789")),ROW($1:$10000))))
C154: 1) Highlight the original column of mixed data
C155: 2) Click on DATA > TEXT TO COLUMNS > DELIMITED > next
C156: 3) Click on [ ] Space
C157: 4) Finish
C164: INDEX('Bal sheet'!$A$3:$M$61,MATCH("",'Bal sheet'!$A$3:$A$65,0),2)
C165: INDEX($A$2:$f$65,MATCH("",$A$2:$A$65,0),2)
C167: OFFSET(Price!A44,1,0)
C168: OFFSET(INDEX('[AnnReport-ZACKS 936a.xlsm]AnnBS'!$A$300:$A400,$A76,COLUMN()-COLUMN($C76)),2,0) | J168: <<< | K168: find the price
C169: With the data now in Excel, you can use VLOOKUP or INDEX/MATCH functions to reference the data in the web query.
C170: For example use a formula like =INDEX(D:D,MATCH("MSFT",B:B,0)) to get the Price for MSFT.
C172: INDEX('Bal sheet'!$A$3:$M$61,MATCH("",'Bal sheet'!$A$3:$A$65,0),2)

Sheet AnnBS (hidden)
A1: =Analysis!E2 -> fb
A2: Skip to main content
A3: We use cookies to understand how you use our site and to improve your experience. This includes personalizing content and advertising. To learn more, click here. By continuing to use our site, you accept our use of cookies, revised Privacy Policy and Terms of Service.
A4: I accept X
A5: Zacks Invesment Research Home
A7: Join
A8: Sign In
A9: Member Sign In
A10: Username or Email Address
A11: Password
A12: Keep Me Signed In What does "Remember Me" do?
A13: Don't Know Your Password?
A14: Close this window
A16: Menu
A18: Home
A19: Stocks Stocks
A21: Stocks
A22: Zacks #1 Rank
A23: Zacks Rank
A24: Zacks Industry Rank
A25: Zacks Sector Rank
A26: Equity Research
A27: Markets
A29: Funds Funds
A31: Funds
A32: Mutual Funds
A33: ETFs
A34: Mutual Fund Screener
A35: ETF Screener
A36: Top ETFs
A38: Crypto
A39: Earnings Earnings
A41: Earnings
A42: Earnings Calendar
A43: Earnings Releases
A44: Earnings ESP
A45: Earnings ESP Filter
A47: Screening Screening
A49: Screening
A50: Stock Screener
A51: Mutual Fund Screener
A52: ETF Screener
A53: Premium Screens
A54: Research Wizard
A56: Finance Finance
A58: Personal Finance
A59: Insurance
A60: Investing
A61: Money Managing
A62: Real Estate
A63: Retirement Planning
A64: Tax Information
A66: Portfolio Portfolio
A68: My Portfolio
A69: Create Portfolio
A71: Education Education
A73: Education
A74: Stocks
A75: Style Scores
A76: Funds
A77: Earnings ESP
A78: Screening
A79: Testimonials
A80: Zacks.com Tutorial
A82: Video
A83: Podcasts
A84: Services Services
A85: Close Services menu
A86: Services Overview
A88: Zacks Ultimate
A89: Zacks Investor Collection
A90: Zacks Premium
A92: Investor Services
A95: ETF Investor
A96: Home Run Investor
A97: Income Investor
A98: Stocks Under $10
A99: Value Investor
A100: Top 10 Stocks
A102: Other Services
A105: Method for Trading
A106: Research Wizard
A107: Zacks Confidential
A109: Trading Services
A112: Black Box Trader
A113: Counterstrike
A114: Headline Trader
A115: Insider Trader
A116: Large-Cap Trader
A117: Options Trader
A118: Short Sell List
A119: Surprise Trader
A120: TAZR
A122: Innovators
A125: Blockchain
A126: Commodity
A127: Healthcare
A128: Marijuana
A129: Technology
A131: Quote or Search Search
A133: Join
A135: Sign In
A137: Member Sign In
A138: Username or Email Address
A139: Password
A140: Keep Me Signed In What does "Remember Me" do?
A141: Don't Know Your Password?
A142: Close this window
A144: Help
A146: Zacks Invesment Research Home
A147: You are being directed to ZacksTrade, a division of LBMZ Securities and licensed broker-dealer. ZacksTrade and Zacks.com are separate companies. The web link between the two companies is not a solicitation or offer to invest in a particular security or type of security. ZacksTrade does not endorse or adopt any particular investment strategy, any analyst opinion/rating/report or any approach to evaluating indiv idual securities.
A148: If you wish to go to ZacksTrade, click OK. If you do not, click Cancel.
A149: OK Cancel
A150: Back to top
A151: more
A152: Financials
A153: Balance Sheet
A154: close
A155: Quotes & News
A156: * indicates the important links in the menu
A158: Quote Overview
A159: Zacks News
A160: Partner News
A162: Zacks Research
A164: *Snapshot
A165: *Analyst Report
A166: *Style Scores
A167: *Detailed Estimates
A168: Comparison to Industry
A169: Zacks Experts View
A171: More Research
A173: *Broker Recommendations
A174: Full Company Report
A175: Earnings Dates and Announcements
A176: Key Company Metrics
A177: Broker Reports
A178: Insiders
A179: Earnings Transcripts
A180: Dividend History
A182: Charts
A184: *Price, Consensus and EPS Surprise
A185: *Fundamental Charts
A186: Comparative
A187: Interactive Charts
A188: Price and Consensus
A189: Price & EPS Surprise
A190: 12 Month EPS
A191: Broker Recommendations
A193: Financials
A195: Financial Overview
A196: Income Statements
A197: Balance Sheet
A198: Cash flow Statements
G199: Alternate method using "Data Feed"
A200: Options | G200: Using Vlookup and Offset | J200: =VLOOKUP("Data Feed",A106:A406,1,0) -> Data Feed
G201: to find Company name | J201: =OFFSET(J200,6,-9) -> Data Feed
A202: Option Chain | I202: Price | J202: =OFFSET(J200,9,-9) -> (Delayed Data from NSDQ)
A203: Options Greek Montage | I203: This name used | J203: =IF(J201="data feed",L209,J201) -> Facebook, Inc. (FB)
I204: This price used | J204: =IF(ISNUMBER(J202),J202,J218) -> 373.06
A205: Access Zacks
A206: Data Feed | J206: NSDQ | L206: NYSE
G207: Using Vlookup and Offset | J207: =VLOOKUP("(Real Time Quote from BATS)",A100:A300,1,0) ->  | L207: =VLOOKUP("(Delayed Data from NYSE)",A100:A300,1,0) -> 
A208: Facebook, Inc. (FB) | G208: to find Price | J208: data Feed | L208: =OFFSET(L207,2,-11) -> (Delayed Data from NSDQ)
A209: (Delayed Data from NSDQ) | J209: =VLOOKUP("Data Feed",A100:A300,1,0) -> Data Feed | L209: =OFFSET(L208,0,-11) -> Facebook, Inc. (FB)
A210: $373.06 USD | J210: =OFFSET(J209,0,-9) -> (Delayed Data from NSDQ)
A211: 373.06 | J211: =OFFSET(J210,3,-9) -> -0.86 (-0.23%)
A212: 11486171
A213: -0.86 (-0.23%) | J213: =OFFSET(J209,0,-9) -> (Delayed Data from NSDQ)
A214: Updated Sep 16, 2021 04:00 PM ET
A215: After-Market: $372.82 -0.24 (-0.06%) 5:04 PM ET | G215: Alternate method using "Data Feed"
A216: Add to portfolio | G216: Using Vlookup and Offset | J216: =VLOOKUP("Data Feed",A122:A422,1,0) -> Data Feed
A217: Zacks Rank: | G217: to find Company name | J217: =OFFSET(J216,-8,-9) -> Facebook, Inc. (FB)
A218: More Info | I218: Price | J218: =OFFSET(J216,-5,-9) -> 373.06
A219: This is our short term rating system that serves as a timeliness indicator for stocks over the next 1 to 3 months. How good is it? See rankings and related performance below.
A220: Zacks Rank | B220: Definition | C220: Annualized Return
A221: 1 | B221: Strong Buy | C221: 0.256
A222: 2 | B222: Buy | C222: 0.1921
A223: 3 | B223: Hold | C223: 0.1085
A224: 4 | B224: Sell | C224: 0.0662
A225: 5 | B225: Strong Sell | C225: 0.0332
A226: S&P | B226: 500 | C226: 0.1133
A227: Zacks Rank Education - Learn about the Zacks Rank
A228: Zacks Rank Home - Zacks Rank resources in one place
A229: Zacks Premium - The only way to fully access the Zacks Rank
A230: 3-Hold of 5 3
A231: Style Scores:
A232: More Info
A233: The Style Scores are a complementary set of indicators to use alongside the Zacks Rank. It allows the user to better focus on the stocks that are the best fit for his or her personal trading style.
A234: The scores are based on the trading styles of Value, Growth, and Momentum. There's also a VGM Score ('V' for Value, 'G' for Growth and 'M' for Momentum), which combines the weighted average of the individual style scores into one score.
A235: Value Score | B235: A
A236: Growth Score | B236: A
A237: Momentum Score | B237: A
A238: VGM Score | B238: A
A239: Within each Score, stocks are graded into five groups: A, B, C, D and F. As you might remember from your school days, an A, is better than a B; a B is better than a C; a C is better than a D; and a D is better than an F.
A240: As an investor, you want to buy stocks with the highest probability of success. That means you want to buy stocks with a Zacks Rank #1 or #2, Strong Buy or Buy, which also has a Score of an A or a B in your personal trading style.
A241: Zacks Style Scores Education - Learn more about the Zacks Style Scores
A242: C Value | B Growth | C Momentum | B VGM
A243: Industry Rank:
A244: More Info
A245: The Zacks Industry Rank assigns a rating to each of the 265 X (Expanded) Industries based on their average Zacks Rank. | O245: =MATCH(P245,A200:A300,) -> 72 | P245: All items in Millions except Per Share data.
... 176 more rows

Sheet Income (hidden)
A1: =Analysis!E2 -> fb
A2: Skip to main content
A3: We use cookies to understand how you use our site and to improve your experience. This includes personalizing content and advertising. To learn more, click here. By continuing to use our site, you accept our use of cookies, revised Privacy Policy and Terms of Service.
A4: I accept X
A5: Zacks Invesment Research Home
A7: Join
A8: Sign In
A9: Member Sign In
A10: Username or Email Address
A11: Password
A12: Keep Me Signed In What does "Remember Me" do?
A13: Don't Know Your Password?
A14: Close this window
A16: Menu
A18: Home
A19: Stocks Stocks
A21: Stocks
A22: Zacks #1 Rank
A23: Zacks Rank
A24: Zacks Industry Rank
A25: Zacks Sector Rank
A26: Equity Research
A27: Markets
A29: Funds Funds
A31: Funds
A32: Mutual Funds
A33: ETFs
A34: Mutual Fund Screener
A35: ETF Screener
A36: Top ETFs
A38: Crypto
A39: Earnings Earnings
A41: Earnings
A42: Earnings Calendar
A43: Earnings Releases
A44: Earnings ESP
A45: Earnings ESP Filter
A47: Screening Screening
A49: Screening
A50: Stock Screener
A51: Mutual Fund Screener
A52: ETF Screener
A53: Premium Screens
A54: Research Wizard
A56: Finance Finance
A58: Personal Finance
A59: Insurance
A60: Investing
A61: Money Managing
A62: Real Estate
A63: Retirement Planning
A64: Tax Information
A66: Portfolio Portfolio
A68: My Portfolio
A69: Create Portfolio
A71: Education Education
A73: Education
A74: Stocks
A75: Style Scores
A76: Funds
A77: Earnings ESP
A78: Screening
A79: Testimonials
A80: Zacks.com Tutorial
A82: Video
A83: Podcasts
A84: Services Services
A85: Close Services menu
A86: Services Overview
A88: Zacks Ultimate
A89: Zacks Investor Collection
A90: Zacks Premium
A92: Investor Services
A95: ETF Investor
A96: Home Run Investor
A97: Income Investor
A98: Stocks Under $10
A99: Value Investor
A100: Top 10 Stocks
A102: Other Services
A105: Method for Trading
A106: Research Wizard
A107: Zacks Confidential
A109: Trading Services
A112: Black Box Trader
A113: Counterstrike
A114: Headline Trader
A115: Insider Trader
A116: Large-Cap Trader
A117: Options Trader
A118: Short Sell List
A119: Surprise Trader
A120: TAZR
A122: Innovators
A125: Blockchain
A126: Commodity
A127: Healthcare
A128: Marijuana
A129: Technology
A131: Quote or Search Search
A133: Join
A135: Sign In
A137: Member Sign In
A138: Username or Email Address
A139: Password
A140: Keep Me Signed In What does "Remember Me" do?
A141: Don't Know Your Password?
A142: Close this window
A144: Help
A146: Zacks Invesment Research Home
A147: You are being directed to ZacksTrade, a division of LBMZ Securities and licensed broker-dealer. ZacksTrade and Zacks.com are separate companies. The web link between the two companies is not a solicitation or offer to invest in a particular security or type of security. ZacksTrade does not endorse or adopt any particular investment strategy, any analyst opinion/rating/report or any approach to evaluating indiv idual securities.
A148: If you wish to go to ZacksTrade, click OK. If you do not, click Cancel.
A149: OK Cancel
A150: Back to top
A151: more
A152: Financials
A153: Income Statements
A154: close
A155: Quotes & News
A156: * indicates the important links in the menu
A158: Quote Overview
A159: Zacks News
A160: Partner News
A162: Zacks Research
A164: *Snapshot
A165: *Analyst Report
A166: *Style Scores
A167: *Detailed Estimates
A168: Comparison to Industry
A169: Zacks Experts View
A171: More Research
A173: *Broker Recommendations
A174: Full Company Report
A175: Earnings Dates and Announcements
A176: Key Company Metrics
A177: Broker Reports
A178: Insiders
A179: Earnings Transcripts
A180: Dividend History
A182: Charts
A184: *Price, Consensus and EPS Surprise
A185: *Fundamental Charts
A186: Comparative
A187: Interactive Charts
A188: Price and Consensus
A189: Price & EPS Surprise
A190: 12 Month EPS
A191: Broker Recommendations
A193: Financials
A195: Financial Overview
A196: Income Statements
A197: Balance Sheet
A198: Cash flow Statements
A200: Options
A202: Option Chain
A203: Options Greek Montage
A205: Access Zacks
A206: Data Feed
A208: Facebook, Inc. (FB)
A209: (Delayed Data from NSDQ)
A210: $373.06 USD
A211: 373.06
A212: 11486171
A213: -0.86 (-0.23%)
A214: Updated Sep 16, 2021 04:00 PM ET
A215: After-Market: $372.82 -0.24 (-0.06%) 5:04 PM ET
A216: Add to portfolio
A217: Zacks Rank:
A218: More Info
A219: This is our short term rating system that serves as a timeliness indicator for stocks over the next 1 to 3 months. How good is it? See rankings and related performance below.
A220: Zacks Rank | B220: Definition | C220: Annualized Return
A221: 1 | B221: Strong Buy | C221: 0.256
A222: 2 | B222: Buy | C222: 0.1921
A223: 3 | B223: Hold | C223: 0.1085
A224: 4 | B224: Sell | C224: 0.0662
A225: 5 | B225: Strong Sell | C225: 0.0332
A226: S&P | B226: 500 | C226: 0.1133
A227: Zacks Rank Education - Learn about the Zacks Rank
A228: Zacks Rank Home - Zacks Rank resources in one place
A229: Zacks Premium - The only way to fully access the Zacks Rank
A230: 3-Hold of 5 3
A231: Style Scores:
A232: More Info
A233: The Style Scores are a complementary set of indicators to use alongside the Zacks Rank. It allows the user to better focus on the stocks that are the best fit for his or her personal trading style.
A234: The scores are based on the trading styles of Value, Growth, and Momentum. There's also a VGM Score ('V' for Value, 'G' for Growth and 'M' for Momentum), which combines the weighted average of the individual style scores into one score.
A235: Value Score | B235: A
A236: Growth Score | B236: A
A237: Momentum Score | B237: A
A238: VGM Score | B238: A
A239: Within each Score, stocks are graded into five groups: A, B, C, D and F. As you might remember from your school days, an A, is better than a B; a B is better than a C; a C is better than a D; and a D is better than an F.
A240: As an investor, you want to buy stocks with the highest probability of success. That means you want to buy stocks with a Zacks Rank #1 or #2, Strong Buy or Buy, which also has a Score of an A or a B in your personal trading style.
A241: Zacks Style Scores Education - Learn more about the Zacks Style Scores
A242: C Value | B Growth | C Momentum | B VGM
A243: Industry Rank:
A244: More Info
A245: The Zacks Industry Rank assigns a rating to each of the 265 X (Expanded) Industries based on their average Zacks Rank.
A246: An industry with a larger percentage of Zacks Rank #1&apos;s and #2&apos;s will have a better average Zacks Rank than one with a larger percentage of Zacks Rank #4&apos;s and #5&apos;s.
A247: The industry with the best average Zacks Rank would be considered the top industry (1 out of 265), which would place it in the top 1% of Zacks Ranked Industries. The industry with the worst average Zacks Rank (265 out of 265) would place in the bottom 1%.
A248: Zacks Rank Education -- Learn more about the Zacks Rank
A249: Zacks Industry Rank Education -- Learn more about the Zacks Industry Rank
... 128 more rows

Sheet Bond rate (hidden)
B1: http://www.bankrate.com/rates/interest-rates/treasury.aspx?ec_id=m1108343&s_kwcid=AL!1325!10!755415317!7018561280&ef_id=VEqRkgAAAagJjRd7:20141024175838:s
A2: Open navigation
A3: Mortgages
A4: Banking
A5: Credit cards
A6: Loans
A7: Investing
A8: Home equity
A9: Insurance
A10: Retirement
A11: Sign in
A12: Main Menu
A13: Mortgages
A14: Mortgages overview
A15: Buying a home
A16: Today's mortgage rates
A17: 30-year mortgage rates
A18: 15-year mortgage rates
A19: Calculate your mortgage payment
A20: How much house can you afford?
A21: Guide to getting a mortgage
A22: How to get the best mortgage rate
A23: Understanding current interest rates
A24: Refinance your existing loan
A25: Refinance rates
A26: 30-year refinance rates
A27: 15-year refinance rates
A28: Mortgage refinance calculator
A29: Mortgage refinance resources
A30: What is refinancing
A31: How to refinance your mortgage
A32: When cash-out refinancing makes sense
A33: Finding the right lender
A34: Best mortgage lenders
A35: Best online lenders
A36: Best lenders for first-time homebuyers
A37: Best VA mortgage lenders
A38: Best jumbo mortgage lenders
A39: Best lenders for all borrowing types
A40: Guide to finding the best lender
A41: All mortgage lender reviews
A42: Resources for all borrowers
A43: First time homebuyers
A44: Veteran resources
A45: FHA loans
A46: Jumbo loans
A47: Adjustable rate mortgages
A48: Mortgage relief
A49: Second home
A50: Closing costs
A51: Elevate your Bankrate experience
A52: Get insider access to our best financial tools and content
A53: Get started
A54: Main Menu
A55: Banking
A56: Banking overview
A57: Compare accounts
A58: CD rates
A59: Savings accounts
A60: Money market accounts
A61: 1-year CD rates
A62: 3-year CD rates
A63: 5-year CD rates
A64: Checking accounts
A65: Best banks
A66: Use calculators
A67: Savings calculator
A68: CD calculator
A69: Compound savings calculator
A70: All banking calculators
A71: Get advice
A72: How to save money
A73: Federal Reserve news
A74: What is a savings account?
A75: What is a money market account?
A76: Which certificate of deposit account is best?
A77: How to open a savings account
A78: Tax advice
A79: Bank reviews
A80: Capital One Bank
A81: Marcus by Goldman Sachs
A82: American Express National Bank
A83: CIT Bank
A84: Synchrony Bank
A85: Barclays Bank
A86: All bank reviews
A87: Elevate your Bankrate experience
A88: Get insider access to our best financial tools and content
A89: Get started
A90: Main Menu
A91: Credit cards
A92: Credit cards overview
A93: Compare by category
A94: Best credit cards of 2021
A95: Rewards
A96: Travel
A97: Airline
A98: Cash back
A99: No annual fee
A100: Balance transfer
A101: 0% APR
A102: Business
A103: Student
A104: No foreign transaction fees
A105: Compare by credit needed
A106: Excellent credit
A107: Good credit
A108: Fair credit
A109: Bad credit
A110: No credit history
A111: Secured credit cards
A112: Compare by issuer
A113: American Express
A114: Bank of America
A115: Capital One
A116: Chase
A117: Citi
A118: Discover
A119: Wells Fargo
A120: Get advice
A121: CardMatch™
A122: Credit card reviews
A123: Credit card payoff calculator
A124: Balance transfer calculator
A125: All credit card calculators
A126: Improving your credit
A127: Looking for the perfect credit card?
A128: Narrow your search with CardMatch™
A129: Find your match
A130: Main Menu
A131: Loans
A132: Loans overview
A133: Personal Loans
A134: Personal loan rates
A135: Personal loans for bad credit
A136: Low-interest personal loans
A137: How to calculate loan interest
A138: Personal loans lender reviews
A139: Personal loans knowledge base
A140: Student Loans
A141: Student loan rates
A142: Private student loans
A143: Student loans without co-signer
A144: Students loans for bad credit
A145: Student loan refinance rates
A146: How long to pay off student loan?
A147: Current student loans news
A148: Student loans lender reviews
A149: Student loans knowledge base
A150: Other Loans
A151: Auto loan rates
A152: Auto loans knowledge base
A153: Debt consolidation loan rates
A154: Home improvement loan rates
A155: Installment loan rates
A156: Emergency loan rates
A157: Loan calculators
A158: Loan calculator
A159: Personal loan calculator
A160: Loan payment calculator
A161: Student loan calculator
A162: Auto loan calculator
A163: Auto refinance calculator
A164: All calculators
A165: Elevate your Bankrate experience
A166: Get insider access to our best financial tools and content
A167: Get started
A168: Main Menu
A169: Investing
A170: Investing overview
A171: Best of
A172: Best investments
A173: Best short-term investments
A174: Best long-term investments
A175: Best investment apps
A176: Best cryptocurrency brokers
A177: Best index funds
A178: Best ETFs
A179: Best mutual funds
A180: Brokerages and robo-advisors
A181: Brokerage reviews
A182: E-Trade review
A183: Robinhood review
A184: TD Ameritrade review
A185: Robo-advisor reviews
A186: Betterment review
A187: Schwab Intelligent Portfolios review
A188: Wealthfront review
A189: Learn the basics
A190: How to start investing
A191: How to invest in stocks
A192: How to invest in ETFs
A193: How to invest in mutual funds
A194: How to buy an S&P 500 index fund
A195: How does a call option work?
A196: What are index funds and how do they work?
A197: What are put options?
A198: Additional resources
A199: Annuity calculator
A200: Currency converter
... 207 more rows

Sheet CFlow (hidden)
A1: =Analysis!E2 -> fb
A2: Skip to main content
A3: We use cookies to understand how you use our site and to improve your experience. This includes personalizing content and advertising. To learn more, click here. By continuing to use our site, you accept our use of cookies, revised Privacy Policy and Terms of Service.
A4: I accept X
A5: Zacks Investment Research Home
A7: Join
A8: Sign In
A9: Member Sign In
A10: Username or Email Address
A11: Password
A12: Keep Me Signed In What does "Remember Me" do?
A13: Don't Know Your Password?
A14: Close this window
A16: Menu
A18: Home
A19: Stocks Stocks
A21: Stocks
A22: Zacks #1 Rank
A23: Zacks Rank
A24: Zacks Industry Rank
A25: Zacks Sector Rank
A26: Equity Research
A27: Markets
A29: Funds Funds
A31: Funds
A32: Mutual Funds
A33: ETFs
A34: Mutual Fund Screener
A35: ETF Screener
A36: Top ETFs
A38: Crypto
A39: Earnings Earnings
A41: Earnings
A42: Earnings Calendar
A43: Earnings Releases
A44: Earnings ESP
A45: Earnings ESP Filter
A47: Screening Screening
A49: Screening
A50: Stock Screener
A51: Mutual Fund Screener
A52: ETF Screener
A53: Premium Screens
A54: Research Wizard
A56: Finance Finance
A58: Personal Finance
A59: Insurance
A60: Investing
A61: Money Managing
A62: Real Estate
A63: Retirement Planning
A64: Tax Information
A66: Portfolio Portfolio
A68: My Portfolio
A69: Create Portfolio
A71: Education Education
A73: Education
A74: Stocks
A75: Style Scores
A76: Funds
A77: Earnings ESP
A78: Screening
A79: Testimonials
A80: Zacks.com Tutorial
A82: Video
A83: Podcasts
A84: Services Services
A85: Close Services menu
A86: Services Overview
A88: Zacks Ultimate
A89: Zacks Investor Collection
A90: Zacks Premium
A92: Investor Services
A95: ETF Investor
A96: Home Run Investor
A97: Income Investor
A98: Stocks Under $10
A99: Value Investor
A100: Top 10 Stocks
A102: Other Services
A105: Method for Trading
A106: Research Wizard
A107: Zacks Confidential
A109: Trading Services
A112: Black Box Trader
A113: Counterstrike
A114: Headline Trader
A115: Insider Trader
A116: Large-Cap Trader
A117: Options Trader
A118: Short Sell List
A119: Surprise Trader
A120: TAZR
A122: Innovators
A125: Blockchain
A126: Commodity
A127: Healthcare
A128: Marijuana
A129: Technology
A131: Quote or Search Search
A133: Join
A135: Sign In
A137: Member Sign In
A138: Username or Email Address
A139: Password
A140: Keep Me Signed In What does "Remember Me" do?
A141: Don't Know Your Password?
A142: Close this window
A144: Help
A146: Zacks Investment Research Home
A147: You are being directed to ZacksTrade, a division of LBMZ Securities and licensed broker-dealer. ZacksTrade and Zacks.com are separate companies. The web link between the two companies is not a solicitation or offer to invest in a particular security or type of security. ZacksTrade does not endorse or adopt any particular investment strategy, any analyst opinion/rating/report or any approach to evaluating indiv idual securities.
A148: If you wish to go to ZacksTrade, click OK. If you do not, click Cancel.
A149: OK Cancel
A150: Back to top
A151: more
A152: Financials
A153: Cash flow Statements
A154: close
A155: Quotes & News
A156: * indicates the important links in the menu
A158: Quote Overview
A159: Zacks News
A160: Partner News
A162: Zacks Research
A164: *Snapshot
A165: *Analyst Report
A166: *Style Scores
A167: *Detailed Estimates
A168: Comparison to Industry
A169: Zacks Experts View
A171: More Research
A173: *Broker Recommendations
A174: Full Company Report
A175: Earnings Dates and Announcements
A176: Key Company Metrics
A177: Broker Reports
A178: Insiders
A179: Earnings Transcripts
A180: Dividend History
A182: Charts
A184: *Price, Consensus and EPS Surprise
A185: *Fundamental Charts
A186: Comparative
A187: Interactive Charts
A188: Price and Consensus
A189: Price & EPS Surprise
A190: 12 Month EPS
A191: Broker Recommendations
A193: Financials
A195: Financial Overview
A196: Income Statements
A197: Balance Sheet
A198: Cash flow Statements
A200: Options
A202: Option Chain
A203: Options Greek Montage
A205: Access Zacks
A206: Data Feed
A208: Meta Platforms, Inc. (FB)
A209: (Delayed Data from NSDQ)
A210: $340.89 USD
A211: 340.89
A212: 25396115
A213: +13.15 (4.01%)
A214: Updated Nov 12, 2021 04:00 PM ET
A215: Add to portfolio
A216: Zacks Rank:
A217: More Info
A218: This is our short term rating system that serves as a timeliness indicator for stocks over the next 1 to 3 months. How good is it? See rankings and related performance below.
A219: Zacks Rank | B219: Definition | C219: Annualized Return
A220: 1 | B220: Strong Buy | C220: 0.2535
A221: 2 | B221: Buy | C221: 0.19
A222: 3 | B222: Hold | C222: 0.1062
A223: 4 | B223: Sell | C223: 0.063
A224: 5 | B224: Strong Sell | C224: 0.0304
A225: S&P | B225: 500 | C225: 0.1124
A226: Zacks Rank Education - Learn about the Zacks Rank
A227: Zacks Rank Home - Zacks Rank resources in one place
A228: Zacks Premium - The only way to fully access the Zacks Rank
A229: 4-Sell of 5 4
A230: Style Scores:
A231: More Info
A232: The Style Scores are a complementary set of indicators to use alongside the Zacks Rank. It allows the user to better focus on the stocks that are the best fit for his or her personal trading style.
A233: The scores are based on the trading styles of Value, Growth, and Momentum. There's also a VGM Score ('V' for Value, 'G' for Growth and 'M' for Momentum), which combines the weighted average of the individual style scores into one score.
A234: Value Score | B234: A
A235: Growth Score | B235: A
A236: Momentum Score | B236: A
A237: VGM Score | B237: A
A238: Within each Score, stocks are graded into five groups: A, B, C, D and F. As you might remember from your school days, an A, is better than a B; a B is better than a C; a C is better than a D; and a D is better than an F.
A239: As an investor, you want to buy stocks with the highest probability of success. That means you want to buy stocks with a Zacks Rank #1 or #2, Strong Buy or Buy, which also has a Score of an A or a B in your personal trading style.
A240: Zacks Style Scores Education - Learn more about the Zacks Style Scores
A241: B Value | A Growth | B Momentum | A VGM
A242: Industry Rank:
A243: More Info
A244: The Zacks Industry Rank assigns a rating to each of the 265 X (Expanded) Industries based on their average Zacks Rank.
A245: An industry with a larger percentage of Zacks Rank #1&apos;s and #2&apos;s will have a better average Zacks Rank than one with a larger percentage of Zacks Rank #4&apos;s and #5&apos;s.
A246: The industry with the best average Zacks Rank would be considered the top industry (1 out of 265), which would place it in the top 1% of Zacks Ranked Industries. The industry with the worst average Zacks Rank (265 out of 265) would place in the bottom 1%.
A247: Zacks Rank Education -- Learn more about the Zacks Rank
A248: Zacks Industry Rank Education -- Learn more about the Zacks Industry Rank
A249: Bottom 25% (191 out of 253)
... 110 more rows

Sheet G-1
G16: Return to Analysis Summary
A18: If Receivables is going up, customers aren't paying their bills. But if Revenue is also going up Receivables will likely go up also--and Inventories as well. If either goes up faster than Revenues however, that's a danger signal. All three are expected to more or less act in concert.
A36: Expect Sales to increase at or above the growth in Cost of Sales. Also, if Property, Plant & Equipment (PP&E) is increasing Revenues should also increase. PP&E might trail Revenues a year or two if the money is being spent on new buildings, etc.--large projects. Allow for completion time.

Sheet G-1a
G16: Return to Analysis Summary
A18: Days waiting for payment is an indication of how loose the company is allowing credit terms to customers to become when paying for product purchases. An upward slope is not desired--unless Sales are also increasing at approximately the same rate. Compare the graphs below, both annual and quarterly, to discern those trends. The number of days waiting is industry sensitive. It's wise to compare companies with their competitors to determine how well your company is doing.
A19: The annual data is a long-term look, which isn't as important as the quarterly data. On the quarterly graph, compare the number of days waiting in the most recent quarter to the year ago quarter--i.e. compare the right side to the left side of the plotted data. An increase of 3 or more days is considered a warning sign the company is loosening credit standards and allowing customers to take longer to pay for product. However, if Sales are increasing at about the same rate (slope on the Sales graph below), a slight upward trend is not considered too serious. Also, an acquision can cause the days waiting to increase.
G35: Return to Analysis Summary

Sheet G-2
A15: =IF(InventoriesThisYear=0,"This company has not reported any Inventories","") -> This company has not reported any Inventories
A16: A ratio showing how many times a company's inventory is sold and replaced each period. The higher the ratio the better. It indicates quality merchandise & proper pricing.
F18: Return to Analysis Summary
A20: The graph to the right indicates the number of days waiting for customers to pay for sold merchandise, and how long inventory is sitting on the shelf unsold. Less than 60 days is good and less than 45 days is suburb. Look for any change in the upward direction of either or both data, indicating a problem with the product or pricing.

Sheet G-2a
A15: Comparing Revenues with Total Assets indicates how well management is utilizing the assets of the company to turn them into sales. Watch the relationship between the two values. If Total Assets is growing faster than Revenues it may signal that management is taking on more debt. Check the debt--see Graph 3a.
F17: Return to Analysis Summary

Sheet G-3
A16: If PP&E is increasing markedly it may cause Free Cash Flow to decrease--even to the point of causing it to become negative. The question to ask is: What is the company spending it's cash on and will that expenditure likely result in increasing market share and sales?
A17: Also compare PP&E with Capital Expenditures as a Percentage of Sales--see the graphic below.
F19: Return to Analysis Summary
I22: Capital expenditures are generally not meaningful on a quarterly basis as it takes time for those types of expenditures to result in increased sales and profitablility. Therefore no graphing of quarterly data is shown here.
A33: Cash flow per share should be greater than Capital Expenditures plus Dividends per share. If Cash Flow is less than capital spending it's a RED FLAG.

Sheet G-3a
E15: Total Interest Coverage is: | H15: =Analysis!F27 -> 14.13536201 | I15: =IF(LTDebtThisYEar=0,"This company has no Long-term Debt","") -> This company has no Long-term Debt
A16: If Long Term Debt is increasing, what is management doing with the money to increase the growth of the company? Can the company borrow at a rate less than the Return on Equity? If not, it's a double whammy to borrow. If the Total Interest Coverage is less than 5, worry. If less than 3, consider a sell. Large Total Interest Coverage numbers don't mean too much. It's the small number you want to pay attention to.
F20: Return to Analysis Summary

Sheet G-4
G16: Return to Analysis Summary
A18: Gross Margin is a company's total revenue, minus cost of goods sold divided by the total sales revenue, expressed as a percentage. The gross margin represents the percent of total sales revenue that the company retains after incurring the direct costs associated with producing the goods and services sold by a company. The higher the percentage, the more the company retains on each dollar of sales to service its other costs and obligations. | I18: Quarterly data provides a more timely look at the same data. Declining Margins are particularly troubling and can be an indicator of future problems. Compare the Margins of this company with its peers and the market in general.
A19: It's the relationship between Revenues and the Cost of Revenues. Stability and an increasing value is an indication of good management--an indication of efficient use of facilities and labor.
A21: The operating profit margin shows how successful a company’s management has been in generating income from the operation of its core business. Net income is the money that's left over after all other expenses have been paid. It indicates how effectively management runs the company.
A22: Operating Income / Sales
A24: Net Profit Margin indicates how much profit a company makes on each dollar it generates in Revenues; again, a measurement of management..
A26: What to look for: To get a better picture when looking at margins, always compare a company to its peers and industry average. (The Analysis section of this form shows year over year short term comparisons in the "Competitors" area as well as competing companies.)

Sheet G-5
A15: Is there sufficient Cash Flow to pay the Dividend if one is paid? If Cash Flow from Operations drops to a value close to or below the Dividends paid, the Dividend is in danger of being cut. The chart is showing Annual data, which is a broad look at the data. Quarterly data is not available for comparison. | I15: The Quarterly Gross Margin reveals the profitability of a company. The numerical value is important if used to compare companies in the same industry only. The trend, however, is comparable regardless of the industry. A decreasing trend can be a warning of profitability problems at the present, as well as in the future. Why is it decreasing?
A17: =IF(Data!M55=0,"No Dividend is currently paid by this company, therefore no comparison can be made.","") -> No Dividend is currently paid by this company, therefore no comparison can be made.
F18: Return to Analysis Summary

Sheet G-5a
A15: How well is management utilizing the assets--turning the assets into sales? Is there consistency? Compare the results with other companies to determine if any problem is with the company, industry, or market.
G18: Return to Analysis Summary

Sheet G-6
A16: Return on Assets (ROA) and Return on Capital (ROC) are arguably better indicators of the profitability of a company, compared to Return on Equity (ROE). Both ROA and ROC include long term debt in the equation and ROE does not. Thus, ROA and ROC provide a more true picture. Debt increases ROE. How? -- The use of debt lowers equity, and if equity is lowered more than net income, ROE will increase. On the other hand, ROA and ROC are lowered by debt--the interest expense lowers net income, which lowers ROA and ROC.
A17: ROE indicates how well the management is doing with the money it has now. ROA and ROC indicate how well management is likely to do in the future with capital.
A18: Both ROA and ROC can be used an the Implied Growth Rate--a realistic growth rate expected in the next few years. Normally ROA is a little more conservative as a projected growth rate.
A20: Watch the relationship between ROE, ROA and ROC, and debt. | J20: Return to Analysis Summary
E38: Return to Analysis Summary

Sheet G-6a
A15: The comparison of these two data are very important and revealing.
A16: If Cash from Operations is declining or falls faster than Net Cashflow Income, it's a very serious situation. The company will need to raise capital to stay in business--through borrowing or issuing new shares. If Net Cash from Operations becomes negative, it means the company is spending it's cash to stay in business.
A17: Look at the Cashflow statement under Operating Activities to see what the company is using it's money for. Look at Inventories and Receivables; if rising, products may not be properly priced or being returned by customers. See Graph-1
F19: Return to Analysis Summary

Sheet G-7a
A15: The higher the number the better, but watch the trend also. This rating is most useful when compared to other companies, particularly those in the same industry.
F17: Return to Analysis Summary

Sheet G-8
A16: Use extreme caution when Net Income exceeds Operating Cash Flow.
F18: Return to Analysis Summary

Sheet G-9
D15: =IF(InventoriesThisYear=0,"This company has no Inventories, therefore Quick Ratio and Current Ratio values are the same","") -> This company has no Inventories, therefore Quick Ratio and Current Ratio values are the same
A16: Current Ratio is also known as the "Liquidity Ratio". The ratio is mainly used to give an idea of the company's ability to pay back its short-term liabilities (debt and payables) with its short-term assets (cash, inventory, receivables). The higher the current ratio, the more capable the company is of paying its obligations. A ratio under 1 suggests that the company would be unable to pay off its obligations if they came due at that point. If decreasing, the companie's financial position is weakening.
A17: Quick Ratio is also known as the "acid-test ratio". It is an indicator of a company's short-term liquidity. The quick ratio measures a company's ability to meet its short-term obligations with its most liquid assets. The higher the quick ratio, the better the position of the company.
A18: The quick ratio is more conservative than the current ratio because it excludes inventory from current assets. Inventory is excluded because some companies have difficulty turning their inventory into cash. In the event that short-term obligations need to be paid off immediately, there are situations in which the current ratio would overestimate a company's short-term financial strength. If decreasing, the companie's financial position is weakening.
A19: NOTE: Ratios are more meaningful if compared to other companies in the same industry.
F22: Return to Analysis Summary
